Cogmind - Beta 9.3 @@@ ROGUE MODE // 2020.01.31 @ 17:09:46 // Winter2019/RPGLIKE Player: badjay Result: Smashed by cave-in Performance ------------- Evolutions (9) 4500 Regions Visited (36) 7200 Robots Destroyed (918) 4590 Value Destroyed (45234) 45234 Prototype IDs (171) 3420 Alien Tech Used (11) 2200 Bonus (36063) 36063 TOTAL SCORE: 103207 Bonus ------- Triggered High Security 1000 High Alert Combat Kills 10546 Follower Combat Kills 3230 Network Hubs Disabled 600 Met Data Miner 300 Built Enhanced Grunts 300 Met R17 at Cetus 500 Hacked Protovariant 500 Destroyed MAIN.C Guards 500 Met MAIN.C 5000 Destroyed MAIN.C Shell 5000 Destroyed MAIN.C 10000 Friendly Fire -1413 Cogmind --------- Core Integrity 0/600 Matter 425/425 Energy 34/380 System Corruption 0% Temperature Cool (3) Movement Flying (24) Location -1/Command Parts ------- > --- POWER (2) -------- Cooled Fission Core Mini Fusion Reactor > --- PROPULSION (3) --- Cooled Q-thruster Cooled Q-thruster Cooled Q-thruster > --- UTILITY (14) ----- Experimental Terrain Scanner Experimental Melee Analysis Suite Experimental Melee Analysis Suite Experimental Target Analyzer Experimental Core Analyzer Experimental Armor Integrity Analyzer Femtoactuators Experimental Actuator Array Advanced Force Booster Advanced Reaction Control System Experimental Phase Shifter AEGIS Remote Shield Experimental Hacking Suite Experimental System Shield > --- WEAPON (6) ------- Phase Gun Enhanced Force Lance Enhanced Force Lance Enhanced Force Lance Enhanced Force Lance Enhanced Force Lance > --- INVENTORY (4) ---- Protomatter-100 Protomatter-88 Improved System Restoration Module Enhanced Force Lance Peak State ------------ > --- POWER ------------ Cooled Fission Core Mini Fusion Reactor > --- PROPULSION ------- Cooled Q-thruster Cooled Q-thruster Cooled Q-thruster > --- UTILITY ---------- Experimental Terrain Scanner Experimental Melee Analysis Suite Experimental Melee Analysis Suite Experimental Target Analyzer Experimental Core Analyzer Experimental Armor Integrity Analyzer Femtoactuators Experimental Actuator Array Advanced Force Booster Advanced Reaction Control System Experimental Phase Shifter AEGIS Remote Shield Experimental Hacking Suite Experimental System Shield > --- WEAPON ----------- Heavy Quantum Rifle Enhanced Force Lance Enhanced Force Lance Enhanced Force Lance Enhanced Force Lance Enhanced Force Lance > --- INVENTORY -------- Protomatter Protomatter Improved System Restoration Module [Rating: 223] Favorites ----------- Power Cooled Ion Engine Engine Cooled Ion Engine Power Core Light Neutrino Core Reactor Mini Fusion Reactor Propulsion Cooled VTOL Module Flight Unit Cooled VTOL Module Utility Improved Melee Analysis Suite Device Long-range Terrain Scanner Processor Improved Melee Analysis Suite Hackware Experimental System Shield Weapon Enhanced Force Lance Energy Gun Improved EM Shotgun Ballistic Gun Light Assault Rifle Launcher Guided Micro-nuke Launcher Impact Weapon Powered Hammer Slashing Weapon Greatsword Piercing Weapon Enhanced Force Lance Special Melee Weapon Improved Datajack Build | -11 -10 -10 -9 -9 -8 -7 -7 -7 -7 -7 -7 -6 -6 -6 -6 -6 -5 -5 -5 -5 -5 -5 -5 -5 -4 -4 -4 -4 -4 -3 -3 -2 -2 -2 -1 -1 ------- Run | Scr Mat Min Mat Sto Mat Fac Was Fac Low Low Zio Pro Fac Low Low Dat Pro Fac Was Fac Ext Cet Arc Hub Fac Was Fac Arm Lab Res Tes Res Qua Sec Acc Com Slots Evolved 18 | . 1 1 5 2 2 3 . . . . . 1 . . . . . 1 . . . . . . . 1 . . . . . 1 . . . . Power 1 | . . . 1 . . . . . . . . . . . . . . . . . . . . . . . . . . . . . . . . . Propulsion 1 | . . 1 . . . . . . . . . . . . . . . . . . . . . . . . . . . . . . . . . . Utility 13 | . . . 3 1 2 3 . . . . . 1 . . . . . 1 . . . . . . . 1 . . . . . 1 . . . . Weapon 3 | . 1 . 1 1 . . . . . . . . . . . . . . . . . . . . . . . . . . . . . . . . Parts Attached 285 | . 4 2 17 8 10 33 . 18 1 . 3 3 20 3 1 . 3 23 . 6 3 2 . 3 5 4 9 13 . 30 17 13 1 16 9 5 Power 22 | . 1 . 4 . . 1 . 2 . . . . 5 . . . . 3 . 1 . . . . . . . . . . . 3 . 2 . . Engine 14 | . 1 . 4 . . 1 . 2 . . . . 5 . . . . 1 . . . . . . . . . . . . . . . . . . Core 4 | . . . . . . . . . . . . . . . . . . 1 . 1 . . . . . . . . . . . 1 . 1 . . Reactor 4 | . . . . . . . . . . . . . . . . . . 1 . . . . . . . . . . . . . 2 . 1 . . Propulsion 22 | . 1 2 3 2 . 1 . 1 . . . . 4 . . . . . . . . . . . . . . 2 . 1 1 2 . 1 1 . Treads . | . . . . . . . . . . . . . . . . . . . . . . . . . . . . . . . . . . . . . Leg . | . . . . . . . . . . . . . . . . . . . . . . . . . . . . . . . . . . . . . Wheel . | . . . . . . . . . . . . . . . . . . . . . . . . . . . . . . . . . . . . . Hover . | . . . . . . . . . . . . . . . . . . . . . . . . . . . . . . . . . . . . . Flight 22 | . 1 2 3 2 . 1 . 1 . . . . 4 . . . . . . . . . . . . . . 2 . 1 1 2 . 1 1 . Utility 162 | . . . 4 1 6 13 . 9 1 . 2 3 7 3 1 . 1 17 . 4 3 2 . 1 5 4 7 7 . 21 14 8 . 11 6 1 Device 112 | . . . . . . 2 . 5 1 . 2 3 5 3 1 . . 12 . 1 2 2 . 1 5 4 5 4 . 18 13 7 . 11 4 1 Storage . | . . . . . . . . . . . . . . . . . . . . . . . . . . . . . . . . . . . . . Processor 35 | . . . 4 1 5 8 . 3 . . . . 2 . . . . 2 . 1 1 . . . . . 1 . . 3 1 1 . . 2 . Hackware 15 | . . . . . 1 3 . 1 . . . . . . . . 1 3 . 2 . . . . . . 1 3 . . . . . . . . Protection . | . . . . . . . . . . . . . . . . . . . . . . . . . . . . . . . . . . . . . Artifact . | . . . . . . . . . . . . . . . . . . . . . . . . . . . . . . . . . . . . . Weapon 79 | . 2 . 6 5 4 18 . 6 . . 1 . 4 . . . 2 3 . 1 . . . 2 . . 2 4 . 8 2 . 1 2 2 4 Energy Gun 26 | . 2 . 4 3 4 10 . . . . . . . . . . 1 . . . . . . . . . . . . . . . . . . 2 Energy Cannon . | . . . . . . . . . . . . . . . . . . . . . . . . . . . . . . . . . . . . . Ballistic Gun 4 | . . . 2 . . . . . . . . . . . . . . . . . . . . 1 . . . . . . . . . . . 1 Ballistic Cannon . | . . . . . . . . . . . . . . . . . . . . . . . . . . . . . . . . . . . . . Launcher 1 | . . . . . . . . . . . . . . . . . . . . . . . . . . . . . . . . . . 1 . . Special Weapon . | . . . . . . . . . . . . . . . . . . . . . . . . . . . . . . . . . . . . . Impact Weapon 4 | . . . . . . . . 2 . . . . . . . . . . . . . . . . . . . 2 . . . . . . . . Slashing Weapon 14 | . . . . 2 . 8 . 2 . . 1 . . . . . . . . . . . . . . . . . . . 1 . . . . . Piercing Weapon 29 | . . . . . . . . 2 . . . . 4 . . . 1 2 . 1 . . . 1 . . 2 2 . 8 1 . 1 1 2 1 Special Melee Weapon 1 | . . . . . . . . . . . . . . . . . . 1 . . . . . . . . . . . . . . . . . . Unidentified Prototypes 49 | . . . . . . 4 . 2 1 . 1 . 3 . . . . 2 . . . . . . 2 1 1 3 . 8 5 2 . 11 1 2 Parts Lost 6 | . 1 . 1 . . 1 . . . . . . . . . . . 2 . 1 . . . . . . . . . . . . . . . . Power 1 | . . . . . . 1 . . . . . . . . . . . . . . . . . . . . . . . . . . . . . . Propulsion . | . . . . . . . . . . . . . . . . . . . . . . . . . . . . . . . . . . . . . Utility 3 | . . . . . . . . . . . . . . . . . . 2 . 1 . . . . . . . . . . . . . . . . Weapon 2 | . 1 . 1 . . . . . . . . . . . . . . . . . . . . . . . . . . . . . . . . . Highest Loss Streak 1 | . 1 . 1 . . 1 . . . . . . . . . . . 1 . 1 . . . . . . . . . . . . . . . . Average Slot Usage (%) 96 | . 64 64 96 100 99 95 94 93 92 89 93 95 94 95 95 95 95 96 100 99 100 100 100 99 100 99 98 100 100 99 99 99 100 97 98 100 Engine 7 | . 18 17 12 15 13 12 11 11 10 10 10 10 9 10 10 10 10 6 4 4 4 4 4 4 4 4 4 4 4 4 4 1 . . . . Core 1 | . . . . . . . . . . . . . . . . . . 2 4 4 4 4 4 4 4 4 4 4 4 4 4 5 4 4 4 4 Flight 10 | . 12 28 21 15 13 12 11 11 10 10 10 10 10 10 10 10 10 9 9 9 9 9 9 9 9 9 9 9 9 9 9 8 8 10 12 12 Device 17 | . . . . . . 1 5 5 15 15 15 21 25 25 25 25 25 23 23 23 23 23 23 22 23 22 21 22 22 21 21 25 26 24 23 27 Processor 23 | . . . 38 36 38 37 33 36 26 26 26 23 20 20 20 20 20 20 23 23 23 23 23 23 23 22 22 20 18 18 18 17 17 16 16 20 Hackware 10 | . . . . . 3 10 16 11 10 10 10 10 10 10 10 10 10 11 9 8 9 9 9 9 9 9 11 15 18 18 18 17 17 16 15 8 Energy Gun 4 | . 33 17 19 30 27 15 . . . . . . . . . . . . . . . . . . . . . . . . . . . . . 1 Slashing Weapon 2 | . . . . . . 5 16 13 5 5 9 10 5 5 5 5 5 2 . . . . . . . . . . . . . . . . . . Piercing Weapon 13 | . . . . . . . . 2 10 10 10 10 14 15 15 15 14 15 19 20 23 23 23 22 23 22 22 22 22 21 22 21 21 20 22 22 Naked Turns 9 | . 9 . . . . . . . . . . . . . . . . . . . . . . . . . . . . . . . . . . . Heaviest Build 97 | . 9 7 25 28 28 31 30 33 33 33 35 37 49 49 45 45 45 49 45 56 61 57 56 58 56 56 64 66 64 77 77 83 82 82 95 97 Greatest Support 104 | 3 14 18 25 32 32 33 33 36 36 36 36 41 50 50 50 54 50 54 54 64 64 60 60 64 60 60 69 77 77 84 79 97 97 104 104 97 Greatest Overweight (x) 1 | . 1 . . . . . . . . . . . . . . . . . . . 1 . . . . . . . . . . 1 . . . . Average Overweight (x) . | . . . . . . . . . . . . . . . . . . . . . . . . . . . . . . . . . . . . . Largest Inventory Capacity 4 | . . . 1 2 2 4 4 4 4 4 4 4 4 4 4 4 4 4 4 4 4 4 4 4 4 4 4 4 4 4 4 4 4 4 4 4 Average Capacity 3 | . . . . 1 2 3 4 4 4 4 4 4 4 4 4 4 4 4 4 4 4 4 4 4 4 4 4 4 4 4 4 4 4 4 4 4 Most Carried 4 | . . . 1 2 2 4 2 4 4 4 4 4 4 4 4 4 4 4 4 4 4 4 4 4 4 4 4 4 4 4 4 4 4 4 4 4 Average Carried 3 | . . . . 1 1 2 2 3 3 4 4 3 3 4 4 4 4 3 4 4 4 4 4 4 3 3 4 4 4 3 4 3 3 3 4 3 Final Capacity 4 | . . . 1 2 2 4 4 4 4 4 4 4 4 4 4 4 4 4 4 4 4 4 4 4 4 4 4 4 4 4 4 4 4 4 4 4 Final Carried 4 | . . . 1 2 2 2 2 2 4 4 4 3 4 4 4 4 4 4 4 4 4 4 4 4 4 4 4 4 4 4 4 4 4 4 4 4 Class Distribution -------------------- 50% | Hacker-Sprinter 16% | Wizard-Sprinter 15% | Machinist-Sprinter 10% | Wizard-Mutant 5% | Hacker-Mutant Dominant Class ---------------- Hacker-Mutant | -10/Materials Hacker-Mutant | -10/Mines Hacker-Mutant | -9/Materials Hacker-Sprinter | -9/Storage Hacker-Sprinter | -8/Materials Hacker-Sprinter | -7/Factory Hacker-Sprinter | -7/Waste Hacker-Sprinter | -7/Factory Hacker-Sprinter | -7/Lower Caves Hacker-Sprinter | -7/Lower Caves Hacker-Sprinter | -7/Zion Hacker-Sprinter | -6/Proximity Caves Hacker-Sprinter | -6/Factory Machinist-Sprinter | -6/Lower Caves Machinist-Sprinter | -6/Lower Caves Machinist-Sprinter | -6/Data Miner Hacker-Sprinter | -5/Proximity Caves Hacker-Sprinter | -5/Factory Hacker-Sprinter | -5/Waste Hacker-Sprinter | -5/Factory Hacker-Sprinter | -5/Extension Hacker-Sprinter | -5/Cetus Hacker-Sprinter | -5/Archives Hacker-Sprinter | -5/Hub_04(d) Hacker-Sprinter | -4/Factory Hacker-Sprinter | -4/Waste Wizard-Sprinter | -4/Factory Wizard-Mutant | -4/Armory Wizard-Mutant | -4/Lab Wizard-Mutant | -3/Research Wizard-Mutant | -3/Testing Wizard-Sprinter | -2/Research Wizard-Sprinter | -2/Quarantine Wizard-Sprinter | -2/Section 7 Machinist-Sprinter | -1/Access Machinist-Sprinter | -1/Command Resources | -11 -10 -10 -9 -9 -8 -7 -7 -7 -7 -7 -7 -6 -6 -6 -6 -6 -5 -5 -5 -5 -5 -5 -5 -5 -4 -4 -4 -4 -4 -3 -3 -2 -2 -2 -1 -1 ----------- Run | Scr Mat Min Mat Sto Mat Fac Was Fac Low Low Zio Pro Fac Low Low Dat Pro Fac Was Fac Ext Cet Arc Hub Fac Was Fac Arm Lab Res Tes Res Qua Sec Acc Com Matter Collected 3505 | 200 40 20 223 80 110 351 . 248 20 . 30 30 200 30 10 . 30 210 . 80 30 20 . 48 60 . 130 130 . 300 139 161 10 425 90 50 Remotely . | . . . . . . . . . . . . . . . . . . . . . . . . . . . . . . . . . . . . . Salvage Created 45376 | . 772 70 1771 1478 2057 1902 . 1209 312 714 . 353 1865 628 1001 . 864 3478 . 1072 1389 358 169 2844 1081 548 1850 1022 . 3335 900 4185 104 2128 2070 3847 Parts 2437 | . 39 12 126 118 107 109 . 71 34 39 . 25 82 39 39 . 44 207 . 88 60 16 5 100 49 16 91 70 . 177 71 226 7 124 106 140 Haulers Intercepted 48 | . 2 . 5 4 6 1 . 3 . . . . 4 . . . . . . . 6 . . 1 . . 2 . . 8 . 5 . . 1 . Recyclers Shooed 1 | . . . . . 1 . . . . . . . . . . . . . . . . . . . . . . . . . . . . . . . Parts Field Recycled . | . . . . . . . . . . . . . . . . . . . . . . . . . . . . . . . . . . . . . Retrieved Matter . | . . . . . . . . . . . . . . . . . . . . . . . . . . . . . . . . . . . . . Parts Self-Destructed 225 | . . . . . . . . . 44 45 . 27 . 39 25 . 45 . . . . . . . . . . . . . . . . . . . Prevented 11 | . . . . . . . . . 8 . . 2 . 1 . . . . . . . . . . . . . . . . . . . . . . Kills | -11 -10 -10 -9 -9 -8 -7 -7 -7 -7 -7 -7 -6 -6 -6 -6 -6 -5 -5 -5 -5 -5 -5 -5 -5 -4 -4 -4 -4 -4 -3 -3 -2 -2 -2 -1 -1 ------- Run | Scr Mat Min Mat Sto Mat Fac Was Fac Low Low Zio Pro Fac Low Low Dat Pro Fac Was Fac Ext Cet Arc Hub Fac Was Fac Arm Lab Res Tes Res Qua Sec Acc Com Combat Hostiles Destroyed 735 | . 15 6 36 39 32 43 . 29 12 18 . 9 26 16 20 . 18 69 . 28 16 5 1 28 14 . 32 19 . 44 16 54 . 28 24 38 Melee 566 | . . . . . . 2 . 29 12 18 . 9 26 16 20 . 18 69 . 28 16 5 1 28 14 . 32 19 . 44 16 54 . 28 24 38 Guns 134 | . 12 4 34 31 26 27 . . . . . . . . . . . . . . . . . . . . . . . . . . . . . . AOE 28 | . 3 2 1 7 6 9 . . . . . . . . . . . . . . . . . . . . . . . . . . . . . . Classes Destroyed 23 | . 6 . 5 . 2 1 . . 1 . . . . . 1 . . 1 . . . . . . . . 1 2 . . . 1 1 . . 1 Worker 20 | . 1 . 2 . 2 1 . . . . . . 1 . . . . 1 . . . . . 10 1 . . . . . . . . . . 1 Builder 10 | . 1 . 1 . 2 1 . . . . . . . . . . . . . . . . . 5 . . . . . . . . . . . . Tunneler 3 | . . . 3 . . . . . . . . . . . . . . . . . . . . . . . . . . . . . . . . . Hauler 48 | . 2 . 5 4 6 1 . 3 . . . . 4 . . . . . . . 6 . . 1 . . 2 . . 8 . 5 . . 1 . Recycler 10 | . . . 1 . 4 1 . . . . . . 1 . . . . . . . . . . 1 1 . . . . . . . . . . 1 Carrier 1 | . . . . . . . . . . . . . . . . . . . . . . . . . . . . . . . . 1 . . . . Operator 4 | . . . . . 1 . . . . . . . . . . . . . . . . . 1 1 . . . . . . . . . . . 1 Watcher 75 | . 1 . 4 2 3 5 . 7 . . . . 4 . . . . 7 . 4 1 . . 2 . . 2 1 . 9 2 8 1 5 6 1 Swarmer 148 | . 3 4 8 7 5 6 . 10 5 11 . 4 3 5 5 . 5 11 . . 1 . . 2 . . 6 1 . 10 3 16 . 16 . 1 Saboteur 2 | . . . . . . . . . . . . . . . . . . . . . . . . . . . . 2 . . . . . . . . Grunt 276 | . 12 2 18 16 19 23 . 9 5 6 . . 12 6 3 . 7 31 . 16 4 1 . 14 10 . 9 1 . 15 7 12 . 1 16 1 Brawler 19 | . . . 1 4 . . . 1 . . . . 1 . 1 . 1 3 . . . . . 2 . . 2 3 . . . . . . . . Duelist 21 | . . . 1 2 2 1 . . . . . . 2 1 1 . 2 2 . 2 . . . 1 . . 1 . . . 1 . . . . 2 Protector 1 | . . . . . . . . . . . . . . . . . . . . . . . . . . . 1 . . . . . . . . . Researcher 7 | . . . . . . . . . . . . . . . . . . . . . . . . . . . . . . . . . 1 6 . . Sentry 126 | . . . 8 10 6 9 . 6 1 1 . 1 6 1 1 . 2 11 . 5 7 . 1 7 4 . 5 4 . 11 . 9 . 7 2 1 Demolisher 2 | . . . . . . . . . . . . . . . . . . 1 . . . . . 1 . . . . . . . . . . . . Specialist 4 | . . . . . . . . . . . . . . . . . . . . . . . . . . . . 4 . . . . . . . . Hunter 45 | . . . . . 1 2 . 1 . . . 2 . 2 2 . 1 5 . 2 . . . . . . 1 . . 5 2 6 . . 2 11 Programmer 48 | . . . . . . 2 . 2 . . . 1 1 . . . . 5 . 2 . 1 . . . . 6 3 . 2 2 8 . . 3 10 Behemoth 18 | . . . . . . . . . 1 . . 1 1 1 . . . . . 1 2 . . 1 . . 1 1 . 1 . 3 . 1 1 2 Cetus Guard 3 | . . . . . . . . . . . . . . . . . . . . . . 3 . . . . . . . . . . . . . . S7 Guard 3 | . . . . . . . . . . . . . . . . . . . . . . . . . . . . . . . . . . 3 . . M Guard 2 | . . . . . . . . . . . . . . . . . . . . . . . . . . . . . . . . . . . . 2 Combat Programmer 2 | . . . . . . . . . . . . . . . . . . . . . . . . . . . . . . . . . . . . 2 Alpha 7 1 | . . . . . . . . . . . . . . . . . . . . . . . . . . . . . . . . . . . . 1 Protovariant Y 1 | . . . . . . . . . . . . . . . . . . . . . . . . . . . . . . . 1 . . . . . Thug 3 | . . . . . 1 . . . . . . . . . . . . . . . . . . 2 . . . . . . . . . . . . Savage 2 | . . . . . . . . . . . . . . . 1 . . . . . . . . . . . . . . . . . . . . 1 Butcher 6 | . . . . . . . . . . . . . . . 5 . . . . . 1 . . . . . . . . . . . . . . . Guerrilla 3 | . . . . . . . . . . . . . . . . . . . . . 1 . . 1 . . . . . . . . . . . 1 Mutant 2 | . . . . . . . . . . . . . . . 1 . . . . . . . . . . . . . . . . . . . . 1 Best Kill Streak 16 | . 7 3 8 10 7 5 . 6 4 10 . 4 5 4 8 . 7 7 . 3 7 2 2 13 6 . 8 6 . 7 4 14 1 11 16 7 Combat Bots Only 12 | . 4 3 7 10 6 5 . 5 4 10 . 4 4 4 8 . 7 7 . 3 5 2 1 6 5 . 7 6 . 5 4 12 . 10 10 7 Max Kills in Single Turn 9 | . 2 2 3 4 5 3 . 2 2 2 . 1 1 2 1 . 1 2 . 1 1 1 1 9 1 . 2 1 . 2 1 3 1 2 3 2 Gunslinging 1 | . 1 . 1 1 1 . . . . . . . . . . . . . . . . . . . . . . . . . . . . . . . Exploded 3 | . 2 2 1 2 1 3 . . . . . . . . . . . . . . . . . . . . . . . . . . . . . . Melee 3 | . . . . . . 1 . 2 2 2 . 1 1 2 1 . 1 2 . 1 1 1 1 2 1 . 2 1 . 2 1 3 . 2 2 2 Uniques/NPCs Destroyed 1 | . . . . . . . . . . . . . . . . . . . . . . . . . . . . . . . . . . . . 1 MAIN.C Shell (-1/Command) MAIN.C (-1/Command) Combat | -11 -10 -10 -9 -9 -8 -7 -7 -7 -7 -7 -7 -6 -6 -6 -6 -6 -5 -5 -5 -5 -5 -5 -5 -5 -4 -4 -4 -4 -4 -3 -3 -2 -2 -2 -1 -1 -------- Run | Scr Mat Min Mat Sto Mat Fac Was Fac Low Low Zio Pro Fac Low Low Dat Pro Fac Was Fac Ext Cet Arc Hub Fac Was Fac Arm Lab Res Tes Res Qua Sec Acc Com Damage Taken 18818 | . 554 125 1159 788 858 1958 . 1044 417 703 . 233 310 361 268 67 228 1658 . 469 161 295 25 536 113 . 1043 378 . 1269 281 1082 173 628 256 1378 Core 15315 | . 465 101 971 623 694 1568 . 839 337 568 . 191 252 297 219 60 190 1323 . 388 126 235 19 426 87 . 847 306 . 1034 227 893 155 541 209 1124 Absorbed by Shields 6239 | . . . . . . . . 43 158 274 . 86 118 131 96 24 86 593 . 321 131 275 26 420 118 . 669 197 . 750 230 261 . 108 246 878 Redirected to Core 11914 | . 290 76 618 547 595 1295 . 643 267 433 . 133 194 228 175 27 127 1192 . 290 120 210 19 373 79 . 664 231 . 796 184 677 68 313 159 891 Core Remaining (%) 92 | 100 . 100 . 100 95 . . . . . . 100 . . . . 91 . . . . . . 79 . . . . 62 . 100 . . 100 . . Volleys Fired 421 | . 43 23 114 52 60 81 . . . . . . . . . . . . . . . . . 7 . . . . . . . . . . . 41 Largest 4 | . 2 1 3 4 4 4 . . . . . . . . . . . . . . . . . 1 . . . . . . . . . . . 1 Hottest 180 | . 80 40 135 180 180 180 . . . . . . . . . . . . . . . . . 33 . . . . . . . . . . . 88 Shots Fired 1069 | . 77 23 193 205 240 283 . . . . . . . . . . . . . . . . . 7 . . . . . . . . . . . 41 Gun 1069 | . 77 23 193 205 240 283 . . . . . . . . . . . . . . . . . 7 . . . . . . . . . . . 41 Cannon . | . . . . . . . . . . . . . . . . . . . . . . . . . . . . . . . . . . . . . Launcher . | . . . . . . . . . . . . . . . . . . . . . . . . . . . . . . . . . . . . . Special . | . . . . . . . . . . . . . . . . . . . . . . . . . . . . . . . . . . . . . Kinetic 60 | . . . 53 . . . . . . . . . . . . . . . . . . . . 7 . . . . . . . . . . . . Thermal 42 | . . . 1 . . . . . . . . . . . . . . . . . . . . . . . . . . . . . . . . 41 Explosive . | . . . . . . . . . . . . . . . . . . . . . . . . . . . . . . . . . . . . . Electromagnetic 967 | . 77 23 139 205 240 283 . . . . . . . . . . . . . . . . . . . . . . . . . . . . . . Robot Hit Streak 43 | . 13 16 43 42 26 38 . . . . . . . . . . . . . . . . . . . . . . . . . . . . . . Robot Miss Streak 5 | . 3 1 2 5 4 2 . . . . . . . . . . . . . . . . . . . . . . . . . . . . . . Penetration Max . | . . . . . . . . . . . . . . . . . . . . . . . . . . . . . . . . . . . . . Secondary Targets 32 | . 2 . 6 9 6 9 . . . . . . . . . . . . . . . . . . . . . . . . . . . . . . Max Gunslinging Chain 2 | . 1 . 1 2 1 1 . . . . . . . . . . . . . . . . . . . . . . . . . . . . . . Shots Hit Robots 2396 | . 53 20 156 168 169 251 . 95 26 35 . 25 93 31 57 1 33 180 . 80 39 32 4 59 29 10 93 38 . 157 47 144 2 72 72 125 Core Hits 1405 | . 32 8 100 92 110 138 . 41 14 18 . 11 42 18 25 . 25 102 . 45 27 15 3 65 20 5 52 26 . 86 27 84 2 50 47 75 Critical Hits 294 | . . . 2 . 3 9 . 12 4 6 . 3 15 3 4 . 5 24 . 19 11 2 . 6 4 2 13 11 . 34 13 36 1 12 16 24 Critical Kills 126 | . . . 1 . . 4 . 5 2 4 . 1 7 1 2 . 1 12 . 6 4 . . 1 1 . 6 9 . 15 6 20 1 8 6 3 Critical Parts Destroyed 136 | . . . 1 . 3 4 . 7 2 2 . 2 8 2 2 . 3 10 . 11 6 2 . 3 3 . 5 2 . 13 5 15 . 3 9 13 Melee Attacks 2466 | . . . . 3 . 14 . 133 36 45 . 39 173 37 70 1 43 245 . 107 55 44 10 85 33 11 147 93 . 246 83 217 16 143 122 215 Impact . | . . . . . . . . . . . . . . . . . . . . . . . . . . . . . . . . . . . . . Slashing 492 | . . . . 3 . 14 . 129 25 34 . 26 117 21 40 1 25 57 . . . . . . . . . . . . . . . . . . Piercing 1974 | . . . . . . . . 4 11 11 . 13 56 16 30 . 18 188 . 107 55 44 10 85 33 11 147 93 . 246 83 217 16 143 122 215 Sneak Attacks 128 | . . . . . . . . 9 2 . . 2 11 1 3 1 . 10 . 1 14 . 1 6 3 . 6 2 . 16 4 10 1 10 8 7 Combat Hostiles 59 | . . . . . . . . 3 2 . . 2 3 1 2 . . 9 . 1 3 . . 5 1 . 3 2 . 6 4 3 . 1 4 4 Follow-up Attacks 561 | . . . . . . 1 . 21 5 9 . 12 27 10 18 . 12 57 . 21 11 15 . 14 7 2 39 11 . 67 18 61 1 30 34 58 Damage Inflicted 131318 | . 1202 339 2821 2935 3791 5283 . 6584 1768 2329 . 1412 6282 1895 3078 183 1822 10778 . 4626 3477 1747 333 6084 1796 732 5755 2529 . 11375 3197 11100 300 6482 6058 13225 Guns 11939 | . 724 241 2290 2464 2503 3717 . . . . . . . . . . . . . . . . . . . . . . . . . . . . . . Cannons . | . . . . . . . . . . . . . . . . . . . . . . . . . . . . . . . . . . . . . Explosions 6163 | . 478 98 531 471 1288 1111 . . . . . . . . . . . . . . . . . 2186 . . . . . . . . . . . . Melee 113216 | . . . . . . 455 . 6584 1768 2329 . 1412 6282 1895 3078 183 1822 10778 . 4626 3477 1747 333 3898 1796 732 5755 2529 . 11375 3197 11100 300 6482 6058 13225 Ramming . | . . . . . . . . . . . . . . . . . . . . . . . . . . . . . . . . . . . . . Kinetic 345 | . . . 345 . . . . . . . . . . . . . . . . . . . . . . . . . . . . . . . . . Thermal 3930 | . 478 98 541 471 1231 1111 . . . . . . . . . . . . . . . . . . . . . . . . . . . . . . Explosive . | . . . . . . . . . . . . . . . . . . . . . . . . . . . . . . . . . . . . . Electromagnetic 13827 | . 724 241 1935 2464 2560 3717 . . . . . . . . . . . . . . . . . 2186 . . . . . . . . . . . . Impact . | . . . . . . . . . . . . . . . . . . . . . . . . . . . . . . . . . . . . . Slashing 24833 | . . . . . . 455 . 6545 1586 1921 . 1041 5250 1441 2326 183 1321 2764 . . . . . . . . . . . . . . . . . . Piercing 88383 | . . . . . . . . 39 182 408 . 371 1032 454 752 . 501 8014 . 4626 3477 1747 333 3898 1796 732 5755 2529 . 11375 3197 11100 300 6482 6058 13225 Highest Corruption 8 | . . . . 1 3 5 8 8 . . . . 1 1 . . . 2 . 1 1 1 . 2 . . 1 1 . 4 . 1 . . . . Average Corruption 2 | . . . . 1 2 4 3 3 . . . . 1 1 . . . 1 . 1 1 1 . 2 . . 1 1 . 2 . 1 . . . . Corruption Purged 28 | . . . . . . 4 . 10 . . . . 1 1 . . . 3 . . . 1 . . . . 1 1 . 5 . 1 . . . . Effects 91 | . . . . . 9 32 . 28 . . . . . 1 . . . 8 . . . . . 1 . . 3 3 . 4 . 2 . . . . Message Errors 21 | . . . . . 1 7 . 5 . . . . . . . . . 3 . . . . . 1 . . . 2 . 2 . . . . . . Matter Fused 13 | . . . . . 2 5 . 6 . . . . . . . . . . . . . . . . . . . . . . . . . . . . Heat Flow Errors 13 | . . . . . . 6 . 5 . . . . . . . . . 2 . . . . . . . . . . . . . . . . . . Energy Discharges 13 | . . . . . 3 4 . 3 . . . . . 1 . . . 1 . . . . . . . . 1 . . . . . . . . . Data Loss (minor) 13 | . . . . . . 4 . 5 . . . . . . . . . 1 . . . . . . . . 2 . . 1 . . . . . . Misfires 1 | . . . . . . 1 . . . . . . . . . . . . . . . . . . . . . . . . . . . . . . Targeting Errors 15 | . . . . . 3 3 . 4 . . . . . . . . . 1 . . . . . . . . . 1 . 1 . 2 . . . . Weapon Failures 2 | . . . . . . 2 . . . . . . . . . . . . . . . . . . . . . . . . . . . . . . Overload Shots . | . . . . . . . . . . . . . . . . . . . . . . . . . . . . . . . . . . . . . Overflow Damage 8358 | . 32 . 31 16 108 80 . 977 267 397 . 88 820 22 181 173 126 634 . 151 74 67 . 380 115 . 232 84 . 776 120 336 . 600 530 941 Projectiles . | . . . . . . . . . . . . . . . . . . . . . . . . . . . . . . . . . . . . . Explosions 460 | . 32 . 31 16 108 25 . . . . . . . . . . . . . . . . . 248 . . . . . . . . . . . . Melee 7898 | . . . . . . 55 . 977 267 397 . 88 820 22 181 173 126 634 . 151 74 67 . 132 115 . 232 84 . 776 120 336 . 600 530 941 Knockbacks . | . . . . . . . . . . . . . . . . . . . . . . . . . . . . . . . . . . . . . Impact . | . . . . . . . . . . . . . . . . . . . . . . . . . . . . . . . . . . . . . Kinetic . | . . . . . . . . . . . . . . . . . . . . . . . . . . . . . . . . . . . . . Secondary . | . . . . . . . . . . . . . . . . . . . . . . . . . . . . . . . . . . . . . Self-Inflicted Damage 1140 | . 170 . 173 47 168 340 . . . . . . . . . . . . . . . . . 242 . . . . . . . . . . . . Shots 29 | . 5 . 6 1 4 10 . . . . . . . . . . . . . . . . . 3 . . . . . . . . . . . . Rammed . | . . . . . . . . . . . . . . . . . . . . . . . . . . . . . . . . . . . . . Targets Rammed . | . . . . . . . . . . . . . . . . . . . . . . . . . . . . . . . . . . . . . Kicked . | . . . . . . . . . . . . . . . . . . . . . . . . . . . . . . . . . . . . . Crushed . | . . . . . . . . . . . . . . . . . . . . . . . . . . . . . . . . . . . . . Highest Temperature 429 | . 174 93 429 385 344 409 . 262 . . . . . . . . . 243 . . 1 . . 5 . . 4 . . 10 362 199 . . . 25 Average Temperature 109 | . 51 28 107 123 133 114 . 122 . . . . . . . . . 113 . . 1 . . 2 . . 3 . . 6 139 62 . . . 15 Received Heat Transfer 3405 | . 105 54 393 288 288 573 . 234 137 48 . 14 62 75 26 8 30 249 . 106 32 23 4 45 25 . 116 43 . 210 34 90 9 52 20 12 Effects 22 | . . . 9 3 1 7 . . . . . . . . . . . . . . . . . . . . . . . . 2 . . . . . Shutdowns 2 | . . . 1 . . . . . . . . . . . . . . . . . . . . . . . . . . . 1 . . . . . Energy Bleed 4 | . . . 1 . 1 1 . . . . . . . . . . . . . . . . . . . . . . . . 1 . . . . . Interference 15 | . . . 6 3 . 6 . . . . . . . . . . . . . . . . . . . . . . . . . . . . . . Damage (minor) 1 | . . . 1 . . . . . . . . . . . . . . . . . . . . . . . . . . . . . . . . . Siege Activations . | . . . . . . . . . . . . . . . . . . . . . . . . . . . . . . . . . . . . . Robots Corrupted 13 | . . . 1 1 1 5 . . . . . . . . . . . . . . . . . 5 . . . . . . . . . . . . Combat Hostiles 7 | . . . 1 1 . 5 . . . . . . . . . . . . . . . . . . . . . . . . . . . . . . Parts Fried 109 | . 4 . 7 20 19 37 . . . . . . . . . . . . . . 1 . . 20 . . . . . 1 . . . . . . Impact Corruptions . | . . . . . . . . . . . . . . . . . . . . . . . . . . . . . . . . . . . . . Robots Melted . | . . . . . . . . . . . . . . . . . . . . . . . . . . . . . . . . . . . . . Combat Hostiles . | . . . . . . . . . . . . . . . . . . . . . . . . . . . . . . . . . . . . . Parts Melted 4 | . . . 1 . . 2 . . . . . . . . . . . . . . . . . 1 . . . . . . . . . . . . Heat Transferred 4178 | . 500 100 775 503 1400 900 . . . . . . . . . . . . . . . . . . . . . . . . . . . . . . Parts Sabotaged . | . . . . . . . . . . . . . . . . . . . . . . . . . . . . . . . . . . . . . Parts Stolen . | . . . . . . . . . . . . . . . . . . . . . . . . . . . . . . . . . . . . . Parts Stripped . | . . . . . . . . . . . . . . . . . . . . . . . . . . . . . . . . . . . . . Power Chain Reactions 53 | . 6 1 9 7 14 16 . . . . . . . . . . . . . . . . . . . . . . . . . . . . . . Missiles Intercepted . | . . . . . . . . . . . . . . . . . . . . . . . . . . . . . . . . . . . . . Alert | -11 -10 -10 -9 -9 -8 -7 -7 -7 -7 -7 -7 -6 -6 -6 -6 -6 -5 -5 -5 -5 -5 -5 -5 -5 -4 -4 -4 -4 -4 -3 -3 -2 -2 -2 -1 -1 ------- Run | Scr Mat Min Mat Sto Mat Fac Was Fac Low Low Zio Pro Fac Low Low Dat Pro Fac Was Fac Ext Cet Arc Hub Fac Was Fac Arm Lab Res Tes Res Qua Sec Acc Com Peak Influence 2364 | . 315 413 511 1181 841 1248 451 919 . . . . 739 . . . . 899 314 652 1048 640 412 2209 1841 1100 2364 1234 . 892 629 1600 472 667 477 412 Average Influence 524 | . 148 272 304 542 543 747 435 522 . . . . 316 . . . . 564 301 297 518 409 376 853 1555 1100 1465 741 . 356 206 922 106 166 179 228 Maximum Alert Level 5 | . 1 2 2 4 3 4 2 3 . . . . 3 . . . . 3 1 2 3 2 2 5 5 4 5 4 . 3 2 5 2 2 2 3 Low Security (%) 22 | 100 74 27 27 25 . 2 . 1 . . . . 28 . . . . 13 . 23 16 26 . 8 . . . . . 33 60 . 81 78 75 14 Level 1 23 | . 25 52 46 8 32 17 . 24 . . . . 55 . . . . 12 100 60 26 10 38 13 . . . 3 . 21 30 1 4 9 16 11 Level 2 24 | . . 19 26 27 42 25 100 43 . . . . 6 . . . . 37 . 15 26 62 61 14 . . 9 37 . 33 9 33 13 11 8 25 Level 3 20 | . . . . 34 25 36 . 29 . . . . 8 . . . . 37 . . 30 . . 41 12 . 10 51 . 11 . 28 . . . 48 Level 4 6 | . . . . 3 . 17 . . . . . . . . . . . . . . . . . 14 25 100 45 7 . . . 35 . . . . Level 5 1 | . . . . . . . . . . . . . . . . . . . . . . . . 6 55 . 16 . . . . 2 . . . . High Security . | . . . . . . . . . . . . . . . . . . . . . . . . . 7 . 16 . . . . . . . . . Max Security . | . . . . . . . . . . . . . . . . . . . . . . . . . . . . . . . . . . . . . Squads Dispatched 166 | . 5 . 6 11 6 15 . 14 . . . . 6 . 1 . . 19 . 10 2 . . 11 6 . 13 3 . 9 7 9 2 3 4 4 Investigation 41 | . 4 . 2 3 1 3 . 3 . . . . 1 . . . . 11 . 3 . . . . 1 . . 1 . 2 1 2 . 1 1 1 Extermination 27 | . . . . . . 2 . 3 . . . . 3 . . . . 3 . 2 . . . 1 . . 1 1 . 2 2 3 . 1 2 1 Reinforcement 45 | . 1 . 4 3 3 5 . 2 . . . . 1 . . . . . . 2 1 . . 4 1 . 5 1 . 4 3 . 2 1 1 1 Assault 24 | . . . . 4 1 4 . . . . . . 1 . 1 . . 2 . . 1 . . . 1 . 6 . . . 1 1 . . . 1 Garrison 29 | . . . . 1 1 1 . 6 . . . . . . . . . 3 . 3 . . . 6 3 . 1 . . 1 . 3 . . . . Intercept . | . . . . . . . . . . . . . . . . . . . . . . . . . . . . . . . . . . . . . Construction Impeded 6 | . . . . . . 1 . . . . . . . . . . . . . . 1 . . 2 . . 2 . . . . . . . . . Haulers Reinforced 5 | . . . . . . 1 . . . . . . 1 . . . . . . . . . . . . . 1 . . 2 . . . . . . Stealth | -11 -10 -10 -9 -9 -8 -7 -7 -7 -7 -7 -7 -6 -6 -6 -6 -6 -5 -5 -5 -5 -5 -5 -5 -5 -4 -4 -4 -4 -4 -3 -3 -2 -2 -2 -1 -1 --------- Run | Scr Mat Min Mat Sto Mat Fac Was Fac Low Low Zio Pro Fac Low Low Dat Pro Fac Was Fac Ext Cet Arc Hub Fac Was Fac Arm Lab Res Tes Res Qua Sec Acc Com Distress Signals 60 | . . . 2 1 6 . . 1 . . . . . . . . . 4 . 1 . 2 . 5 1 . 3 2 . 3 . 1 3 3 1 21 Communications Jammed . | . . . . . . . . . . . . . . . . . . . . . . . . . . . . . . . . . . . . . Distress Signals . | . . . . . . . . . . . . . . . . . . . . . . . . . . . . . . . . . . . . . Times Spotted 1103 | . 25 11 54 55 47 78 4 45 16 23 . 10 38 17 21 4 19 88 5 38 22 17 4 48 14 . 58 49 . 67 24 75 7 44 29 47 Peak Tracking Total 22 | . 5 3 9 9 6 14 4 5 6 13 . 4 4 4 7 4 7 12 5 4 4 5 3 8 5 . 10 22 . 6 4 8 4 8 5 5 Tactical Retreats 33 | . 2 1 1 . 5 3 . 1 . . . . . 1 1 . . . . 1 . . . . . . . 4 . 4 3 1 . 3 . 2 Traps | -11 -10 -10 -9 -9 -8 -7 -7 -7 -7 -7 -7 -6 -6 -6 -6 -6 -5 -5 -5 -5 -5 -5 -5 -5 -4 -4 -4 -4 -4 -3 -3 -2 -2 -2 -1 -1 ------- Run | Scr Mat Min Mat Sto Mat Fac Was Fac Low Low Zio Pro Fac Low Low Dat Pro Fac Was Fac Ext Cet Arc Hub Fac Was Fac Arm Lab Res Tes Res Qua Sec Acc Com Traps Triggered 20 | . 3 . . . 3 1 . . . . . . . . . . . 1 . . . . . 1 1 . 2 . . 3 1 2 . 1 . 1 Indirectly 1 | . . . . . . . . . . . . . . . . . . . . . . . . 1 . . . . . . . . . . . . Trap Hack Attempts . | . . . . . . . . . . . . . . . . . . . . . . . . . . . . . . . . . . . . . Triggered . | . . . . . . . . . . . . . . . . . . . . . . . . . . . . . . . . . . . . . Disarmed . | . . . . . . . . . . . . . . . . . . . . . . . . . . . . . . . . . . . . . Reprogrammed 6 | . . . . . . . . . . . . . . . . . . . . . . . . . . . . 6 . . . . . . . . Reused . | . . . . . . . . . . . . . . . . . . . . . . . . . . . . . . . . . . . . . Traps Extracted . | . . . . . . . . . . . . . . . . . . . . . . . . . . . . . . . . . . . . . Installed . | . . . . . . . . . . . . . . . . . . . . . . . . . . . . . . . . . . . . . Triggered 8 | . . . . . . 1 . . 4 . . 1 . 1 . . . . . . . . . . . . . . . 1 . . . . . . Machines | -11 -10 -10 -9 -9 -8 -7 -7 -7 -7 -7 -7 -6 -6 -6 -6 -6 -5 -5 -5 -5 -5 -5 -5 -5 -4 -4 -4 -4 -4 -3 -3 -2 -2 -2 -1 -1 ---------- Run | Scr Mat Min Mat Sto Mat Fac Was Fac Low Low Zio Pro Fac Low Low Dat Pro Fac Was Fac Ext Cet Arc Hub Fac Was Fac Arm Lab Res Tes Res Qua Sec Acc Com Machines Disabled 101 | . 1 1 . 7 3 2 . . 2 1 . . . . . . . . . . 3 2 1 30 12 . 13 4 . . 5 . 2 10 . 2 Max in Single Turn 16 | . 1 . . 2 2 1 . . 1 1 . . . . . . . . . . . . . 16 . . . 1 . . 1 . 1 1 . 1 Garrison Access 9 | . . . . 1 1 1 . . . . . . 1 . . . . 1 . . . . . 2 . . 1 . . . . . 1 . . . Network Hub 3 | . . . . . . . . . . . . . . . . . . . . . . . . 3 . . . . . . . . . . . . Machines Sabotaged . | . . . . . . . . . . . . . . . . . . . . . . . . . . . . . . . . . . . . . Garrisons Compromised . | . . . . . . . . . . . . . . . . . . . . . . . . . . . . . . . . . . . . . Overloaded Fab Kills . | . . . . . . . . . . . . . . . . . . . . . . . . . . . . . . . . . . . . . Fab Network Shutdowns 8 | . . . . . . 1 . . . . . . 1 . . . . . . 1 . . . . . . 1 1 . 1 1 . . . 1 . Hacking | -11 -10 -10 -9 -9 -8 -7 -7 -7 -7 -7 -7 -6 -6 -6 -6 -6 -5 -5 -5 -5 -5 -5 -5 -5 -4 -4 -4 -4 -4 -3 -3 -2 -2 -2 -1 -1 --------- Run | Scr Mat Min Mat Sto Mat Fac Was Fac Low Low Zio Pro Fac Low Low Dat Pro Fac Was Fac Ext Cet Arc Hub Fac Was Fac Arm Lab Res Tes Res Qua Sec Acc Com Machines Accessed 306 | . 6 1 8 11 8 18 . 22 2 3 1 . 28 . . 4 . 25 . 15 16 2 . 12 4 . 9 10 . 20 12 20 9 19 14 7 Terminals 231 | . 6 1 8 9 7 13 . 15 1 1 . . 19 . . . . 16 . 11 16 2 . 10 3 . 6 8 . 13 10 13 8 18 10 7 Fabricators 31 | . . . . . . 3 . 3 . . . . 4 . . . . 5 . 2 . . . . . . 2 2 . 2 1 4 . . 3 . Repair Stations . | . . . . . . . . . . . . . . . . . . . . . . . . . . . . . . . . . . . . . Recycling Units 1 | . . . . 1 . . . . . . . . . . . . . . . . . . . . . . . . . . . . . . . . Scanalyzers 3 | . . . . . . 1 . . . . . . 1 . . . . . . . . . . . . . . . . 1 . . . . . . Garrison Access 32 | . . . . 1 1 1 . 4 . . . . 4 . . . . 4 . 2 . . . 2 1 . 1 . . 4 1 3 1 1 1 . Total Hacks 1960 | . 39 6 48 84 41 76 . 133 13 20 2 . 135 . . 25 . 126 . 85 79 19 . 67 31 . 66 103 . 137 84 114 84 168 112 63 Successful 1299 | . 18 4 29 53 27 45 . 72 12 17 2 . 93 . . 25 . 78 . 54 44 15 . 43 20 . 37 55 . 82 58 72 71 136 91 46 Failed 652 | . 20 2 19 30 14 31 . 60 1 3 . . 42 . . . . 47 . 30 35 4 . 24 11 . 29 48 . 54 26 42 13 31 20 16 Catastrophic 116 | . 1 . 2 2 3 6 . 7 1 . . . 7 . . . . 9 . 5 10 . . 1 2 . 4 11 . 19 8 7 1 3 6 1 Database Lockouts 13 | . 1 . . 3 . . . 1 . . . . . . . . . 1 . 2 . . . . . . . . . 1 . . . 1 2 1 Manual 1245 | . 27 6 34 76 32 33 . 77 3 5 4 . 86 . . . . 76 . 60 61 12 . 53 21 . 31 67 . 98 55 79 55 104 61 29 Terminals 1593 | . 39 6 48 73 39 59 . 97 12 13 . . 95 . . . . 85 . 61 79 19 . 55 23 . 58 91 . 110 65 81 77 154 91 63 Fabricators 192 | . . . . . . 12 . 17 . . . . 27 . . . . 28 . 16 . . . . . . 7 12 . 19 16 20 . . 18 . Repair Stations . | . . . . . . . . . . . . . . . . . . . . . . . . . . . . . . . . . . . . . Recycling Units 4 | . . . . 4 . . . . . . . . . . . . . . . . . . . . . . . . . . . . . . . . Scanalyzers 6 | . . . . . . 2 . . . . . . 2 . . . . . . . . . . . . . . . . 2 . . . . . . Garrison Access 130 | . . . . 7 2 3 . 19 . . . . 11 . . . . 13 . 8 . . . 12 8 . 1 . . 6 3 13 7 14 3 . Terminal Hacks 739 | . 13 4 19 34 15 22 . 34 11 16 2 . 42 . . 25 . 36 . 29 32 10 . 17 8 . 17 28 . 44 25 27 50 89 61 29 Record 93 | . . . . . 1 . . . 9 14 . . . . . 11 . . . . . 5 . . . . . . . 2 . 1 2 16 21 11 Part Schematic 78 | . . . . . . 3 . 7 . . 2 . 8 . . 7 . 7 . 3 9 . . 3 . . 1 1 . 7 7 3 7 2 . 1 Robot Schematic 25 | . . . . . . 1 . . . . . . . . . 4 . 4 . . 1 . . . . . 1 4 . . . 2 4 3 1 . Robot Analysis 28 | . . . . . 1 2 . 3 . . . . 1 . . . . 2 . . . . . . 2 . 1 1 . 6 1 2 . 2 3 1 Prototype ID Bank 120 | . 5 4 7 12 . 1 . 2 . . . . 9 . . 3 . 3 . 1 . . . . . . 1 1 . 5 1 . 22 31 10 2 Open Door 24 | . . . . 3 . . . . 1 1 . . . . . . . . . . 8 1 . . . . . . . . 1 1 . 5 2 1 Level Access Points 21 | . 2 . 1 1 1 . . 1 . . . . . . . . . 1 . 1 1 . . 1 2 . . 1 . 1 1 1 1 1 2 1 Branch Access Points 25 | . 1 . 1 . 1 1 . 1 1 1 . . 1 . . . . 1 . 1 1 . . 1 1 . 1 1 . 2 2 1 2 1 1 1 Emergency Access Points 3 | . . . . . . . . . . . . . . . . . . . . . . . . . . . . . . . . . 1 1 . 1 Machine Index 9 | . . . . . . 1 . 1 . . . . . . . . . . . . 1 . . 1 . . . 1 . . . 1 1 1 1 . Terminal Index 18 | . 1 . 1 1 1 1 . 2 . . . . 1 . . . . . . 1 1 . . 1 1 . 1 . . . 2 1 . 1 . 1 Fabricator Index 4 | . . . . . . . . . . . . . 1 . . . . . . 1 . . . . 1 . . . . 1 . . . . . . Repair Station Index 1 | . . . . . . . . . . . . . . . . . . . . . . . . . . . 1 . . . . . . . . . Recycling Unit Index 1 | . . . . . . . . . . . . . 1 . . . . . . . . . . . . . . . . . . . . . . . Scanalyzer Index 2 | . . . . . . . . . . . . . 1 . . . . . . 1 . . . . . . . . . . . . . . . . Garrison Index 5 | . . . . . . . . . . . . . 1 . . . . . . 1 . . . . . . . . . 2 1 . . . . . Alert Level 88 | . 1 . 3 2 1 1 . 6 . . . . 9 . . . . 2 . 6 4 2 . 4 . . 2 5 . 6 3 4 4 8 10 5 Unreport Threat 111 | . . . 6 5 5 4 . 8 . . . . 4 . . . . 9 . 7 5 2 . 5 1 . 4 8 . 8 4 9 3 7 6 1 Locate Traps 3 | . . . . . . . . . . . . . . . . . . 1 . . . . . . . . . 1 . . . . . 1 . . Reprogram Traps 1 | . . . . . . . . . . . . . . . . . . . . . . . . . . . . 1 . . . . . . . . Dispatch Records 3 | . . . . 1 1 . . . . . . . . . . . . . . . . . . . . . . 1 . . . . . . . . Maintenance Status 1 | . . . . . . . . . . . . . . . . . . . . . . . . . . . 1 . . . . . . . . . Security Status 4 | . . . . 2 . . . . . . . . . . . . . 1 . . . . . . . . . 1 . . . . . . . . Surveillance Status 1 | . . . . . . . . . . . . . . . . . . . . . . . . . . . . 1 . . . . . . . . Patrol Status 3 | . . . . 1 . . . . . . . . . . . . . . . . . . . . . . 1 . . . . . . 1 . . Transport Status 1 | . . . . 1 . . . . . . . . . . . . . . . . . . . . . . . . . . . . . . . . Recall Investigation 12 | . 1 . . 2 . . . . . . . . . . . . . 2 . 2 . . . . . . . . . . 1 . . 2 1 1 Recall Extermination 5 | . . . . . . . . . . . . . 1 . . . . 1 . 1 . . . . . . . . . . . . . . 2 . Recall Reinforcements 6 | . 1 . . . . 2 . . . . . . . . . . . . . . . . . . . . . . . 1 . . . 1 1 . Recall Assault 2 | . . . . . . 1 . . . . . . . . . . . . . . 1 . . . . . . . . . . . . . . . Hauler Manifests 19 | . 1 . . 1 1 2 . 1 . . . . 2 . . . . 1 . 2 . . . 1 . . 1 . . 1 . 1 1 3 . . Registered Components 10 | . . . . 1 1 1 . 1 . . . . 1 . . . . . . 1 . . . . . . . . . 1 . . 1 1 . 1 Registered Prototypes 8 | . . . . 1 . 1 . 1 . . . . 1 . . . . 1 . . . . . . . . 1 . . 1 . . 1 . . . Zone Layout 2 | . . . . . 1 . . . . . . . . . . . . . . . . . . . . . . . . . . . . 1 . . Protovariant Controls 1 | . . . . . . . . . . . . . . . . . . . . . . . . . . . . . . . 1 . . . . . Disengage Seal 1 | . . . . . . . . . . . . . . . . . . . . . . . . . . . . . . . . . . . . 1 Fabricator Hacks 122 | . . . . . . 8 . 11 . . . . 19 . . . . 16 . 10 . . . . . . 5 9 . 11 11 10 . . 12 . Load Schematic 59 | . . . . . . 3 . 5 . . . . 9 . . . . 8 . 6 . . . . . . 2 4 . 6 6 5 . . 5 . Build 63 | . . . . . . 5 . 6 . . . . 10 . . . . 8 . 4 . . . . . . 3 5 . 5 5 5 . . 7 . Repair Station Hacks . | . . . . . . . . . . . . . . . . . . . . . . . . . . . . . . . . . . . . . Recycling Unit Hacks 1 | . . . . 1 . . . . . . . . . . . . . . . . . . . . . . . . . . . . . . . . Report Inventory 1 | . . . . 1 . . . . . . . . . . . . . . . . . . . . . . . . . . . . . . . . Scanalyzer 6 | . . . . . . 2 . . . . . . 2 . . . . . . . . . . . . . . . . 2 . . . . . . Insert Component 3 | . . . . . . 1 . . . . . . 1 . . . . . . . . . . . . . . . . 1 . . . . . . Analyze 3 | . . . . . . 1 . . . . . . 1 . . . . . . . . . . . . . . . . 1 . . . . . . Garrison Access Hacks 6 | . . . . 1 . 1 . . . . . . . . . . . 1 . . . . . 2 . . . . . . . . 1 . . . Seal Access 6 | . . . . 1 . 1 . . . . . . . . . . . 1 . . . . . 2 . . . . . . . . 1 . . . Unauthorized Hacks 952 | . 12 . 23 40 24 32 . 69 2 2 . . 67 . . . . 57 . 37 24 12 . 55 28 . 35 41 . 55 44 78 40 100 38 37 Terminals 303 | . 5 . 10 12 10 9 . 12 1 1 . . 19 . . . . 12 . 9 12 5 . 20 8 . 12 16 . 15 16 19 14 38 11 17 Track 121 | . 2 . 5 5 4 3 . 5 1 1 . . 10 . . . . 3 . 5 6 2 . 6 3 . 4 7 . 6 6 7 6 12 5 7 Assimilate 44 | . . . 1 1 1 2 . 2 . . . . 5 . . . . 4 . 1 . . . 6 . . 1 . . . 3 7 2 5 2 1 Botnet 81 | . 3 . 3 4 3 3 . 3 . . . . 3 . . . . 3 . 3 3 2 . 3 3 . 3 5 . 5 4 3 5 9 3 5 Detonate 1 | . . . . . . . . . . . . . . . . . . . . . . . . . . . . . . . . . . 1 . . Disrupt 33 | . . . . 1 1 1 . . . . . . . . . . . 1 . . 2 . . 3 1 . 1 3 . 3 2 1 . 9 1 3 Operators 23 | . . . 1 1 1 . . 2 . . . . 1 . . . . 1 . . 1 1 . 2 1 . 3 1 . 1 1 1 1 2 . 1 Fabricators 39 | . . . . . . 2 . 3 . . . . 5 . . . . 5 . 3 . . . . . . 2 2 . 4 3 5 . . 5 . Report 11 | . . . . . . . . 1 . . . . 1 . . . . 1 . 1 . . . . . . . 1 . 1 1 2 . . 2 . Prioritize 12 | . . . . . . 1 . 1 . . . . 1 . . . . 1 . 1 . . . . . . 1 1 . 1 1 1 . . 2 . Siphon 11 | . . . . . . . . 1 . . . . 2 . . . . 2 . 1 . . . . . . 1 . . 1 1 1 . . 1 . Haulers 4 | . . . . . . . . . . . . . 1 . . . . 1 . . . . . . . . . . . 1 . 1 . . . . Download 1 | . . . . . . 1 . . . . . . . . . . . . . . . . . . . . . . . . . . . . . . Repair Stations . | . . . . . . . . . . . . . . . . . . . . . . . . . . . . . . . . . . . . . Recycling Units 2 | . . . . 2 . . . . . . . . . . . . . . . . . . . . . . . . . . . . . . . . Reject 1 | . . . . 1 . . . . . . . . . . . . . . . . . . . . . . . . . . . . . . . . Mask 1 | . . . . 1 . . . . . . . . . . . . . . . . . . . . . . . . . . . . . . . . Scanalyzers . | . . . . . . . . . . . . . . . . . . . . . . . . . . . . . . . . . . . . . Garrison Access 80 | . . . . 3 2 1 . 12 . . . . 6 . . . . 8 . 3 . . . 4 3 . 1 . . 6 3 11 6 9 2 . Broadcast 4 | . . . . . . . . . . . . . . . . . . . . . . . . . . . . . . . 1 1 1 1 . . Decoy 4 | . . . . . . . . . . . . . . . . . . . . . . . . . . . . . . . . 1 1 2 . . Redirect 3 | . . . . . . . . . . . . . . . . . . . . . . . . . . . . . . . . 1 1 1 . . Reprogram 52 | . . . . 3 1 . . 11 . . . . 4 . . . . 7 . 3 . . . 3 2 . 1 . . 5 1 6 1 3 1 . Intercept 3 | . . . . . . . . . . . . . . . . . . . . . . . . . . . . . . . . 1 1 1 . . Watchers 14 | . . . . . 1 1 . 1 . . . . 2 . . . . 1 . . . . . 1 1 . . . . 1 1 1 1 1 1 . Data Cores Recovered 1 | . . . . . . . . . . . . . . . . . . . . . . . . . . . . . . . . 1 . . . . Used . | . . . . . . . . . . . . . . . . . . . . . . . . . . . . . . . . . . . . . Hacking Detections 230 | . 6 1 8 10 8 17 . 20 1 1 . . 21 . . . . 23 . 11 12 1 . 8 4 . 6 6 . 9 11 12 6 13 8 7 Full Trace Events 29 | . 1 1 2 4 1 1 . 1 1 . . . 1 . . . . 10 . 2 . . . . . . . 1 . 1 1 1 . . . . Feedback Events 7 | . . . . 1 . . . . . . . . . . . . . 4 . 1 . . . . . . . . . . . 1 . . . . Corruption 4 | . . . . 1 . . . . . . . . . . . . . 2 . . . . . . . . . . . . . 1 . . . . Hackware Fried 3 | . . . . . . . . . . . . . . . . . . 2 . 1 . . . . . . . . . . . . . . . . Feedback Blocked . | . . . . . . . . . . . . . . . . . . . . . . . . . . . . . . . . . . . . . Robot Schematics Acquired 25 | . . . . . . 1 . . . . . . . . . 4 . 4 . . 1 . . . . . 1 4 . . . 2 4 3 1 . Robots Built 5 | . . . . . . . . . . . . . . . . . . 5 . . . . . . . . . . . . . . . . . . Matter 504 | . . . . . . . . . . . . . . . . . . 504 . . . . . . . . . . . . . . . . . . Time 134 | . . . . . . . . . . . . . . . . . . 134 . . . . . . . . . . . . . . . . . . Total Robot Build Rating 20 | . . . . . . . . . . . . . . . . . . 20 . . . . . . . . . . . . . . . . . . Part Schematics Acquired 75 | . . . . . . 5 . 6 . . 2 . 7 . . 7 . 7 . 2 8 . . 3 . . 1 1 . 7 6 3 7 2 . 1 Parts Built 54 | . . . . . . 6 . 6 . . . . 8 . . . . 4 . 5 . . . . . . 1 5 . 5 5 4 . . 5 . Matter 12345 | . . . . . . 906 . 880 . . . . 1121 . . . . 965 . 1159 . . . . . . 256 1309 . 1357 1412 1349 . . 1631 . Time 2388 | . . . . . . 173 . 262 . . . . 264 . . . . 229 . 299 . . . . . . 64 202 . 234 167 226 . . 268 . Total Part Build Rating 361 | . . . . . . 28 . 28 . . . . 45 . . . . 28 . 36 . . . . . . 8 37 . 44 39 29 . . 39 . Parts Repaired . | . . . . . . . . . . . . . . . . . . . . . . . . . . . . . . . . . . . . . Time . | . . . . . . . . . . . . . . . . . . . . . . . . . . . . . . . . . . . . . Parts Recycled . | . . . . . . . . . . . . . . . . . . . . . . . . . . . . . . . . . . . . . Recycled Matter . | . . . . . . . . . . . . . . . . . . . . . . . . . . . . . . . . . . . . . Retrieved Matter . | . . . . . . . . . . . . . . . . . . . . . . . . . . . . . . . . . . . . . Retrieved Components . | . . . . . . . . . . . . . . . . . . . . . . . . . . . . . . . . . . . . . Parts Scanalyzed 3 | . . . . . . 1 . . . . . . 1 . . . . . . . . . . . . . . . . 1 . . . . . . Part Schematics Acquired 3 | . . . . . . 1 . . . . . . 1 . . . . . . . . . . . . . . . . 1 . . . . . . Parts Damaged . | . . . . . . . . . . . . . . . . . . . . . . . . . . . . . . . . . . . . . Bothacking | -11 -10 -10 -9 -9 -8 -7 -7 -7 -7 -7 -7 -6 -6 -6 -6 -6 -5 -5 -5 -5 -5 -5 -5 -5 -4 -4 -4 -4 -4 -3 -3 -2 -2 -2 -1 -1 ------------ Run | Scr Mat Min Mat Sto Mat Fac Was Fac Low Low Zio Pro Fac Low Low Dat Pro Fac Was Fac Ext Cet Arc Hub Fac Was Fac Arm Lab Res Tes Res Qua Sec Acc Com Used RIF Installer . | . . . . . . . . . . . . . . . . . . . . . . . . . . . . . . . . . . . . . Robots Hacked . | . . . . . . . . . . . . . . . . . . . . . . . . . . . . . . . . . . . . . Non-combat . | . . . . . . . . . . . . . . . . . . . . . . . . . . . . . . . . . . . . . Combat . | . . . . . . . . . . . . . . . . . . . . . . . . . . . . . . . . . . . . . Robot Hacks Applied . | . . . . . . . . . . . . . . . . . . . . . . . . . . . . . . . . . . . . . Relay Couplers Released 3 | . . . . . 1 . . . . . . . 1 . . . . . . . . . . . . . . . . . . . . . 1 . Machine Destruction 2 | . . . . . 1 . . . . . . . 1 . . . . . . . . . . . . . . . . . . . . . . . Programmers 1 | . . . . . . . . . . . . . . . . . . . . . . . . . . . . . . . . . . . 1 . Robots Rewired 9 | . . . . . . . . . . . . . . . 1 . 2 . . . 5 . . . 1 . . . . . . . . . . . Allies Hacked 12 | . . . . . . . . 1 1 . . . . . . . . . . . . 1 . 1 . . . . . 2 3 2 . 1 . . Hacks Repelled . | . . . . . . . . . . . . . . . . . . . . . . . . . . . . . . . . . . . . . Allies | -11 -10 -10 -9 -9 -8 -7 -7 -7 -7 -7 -7 -6 -6 -6 -6 -6 -5 -5 -5 -5 -5 -5 -5 -5 -4 -4 -4 -4 -4 -3 -3 -2 -2 -2 -1 -1 -------- Run | Scr Mat Min Mat Sto Mat Fac Was Fac Low Low Zio Pro Fac Low Low Dat Pro Fac Was Fac Ext Cet Arc Hub Fac Was Fac Arm Lab Res Tes Res Qua Sec Acc Com Total Allies 190 | . . 5 1 8 1 2 . 18 1 . 3 . 6 . 1 . 2 23 . 10 17 5 . 13 4 20 1 . . 11 8 16 1 9 3 1 Largest Group 23 | . . 5 5 8 8 3 . 12 10 8 11 9 8 1 1 1 2 10 5 5 22 23 20 22 8 20 20 . . 6 7 12 12 5 4 1 Highest-Rated Group 1111 | . . 80 80 112 112 59 . 230 184 130 200 167 150 40 20 20 58 236 162 142 794 1111 938 879 455 776 776 . . 248 368 676 672 344 204 44 Highest-Rated Ally 156 | . . 31 26 31 31 26 . 38 38 21 25 25 41 40 20 20 29 41 41 29 156 156 134 94 94 50 50 . . 90 90 90 90 90 90 44 Total Orders 144 | . . . 11 13 4 17 . 4 . . . . 12 . . . . 22 . 4 7 . . 15 . . . . . . 7 18 . 3 7 . STAY 14 | . . . 4 . . 1 . . . . . . 2 . . . . 3 . . . . . . . . . . . . . 1 . . 3 . GOTO 66 | . . . 1 6 2 8 . 2 . . . . 5 . . . . 9 . 2 5 . . 10 . . . . . . 3 10 . 2 1 . FOLLOW 64 | . . . 6 7 2 8 . 2 . . . . 5 . . . . 10 . 2 2 . . 5 . . . . . . 4 7 . 1 3 . Ally Attacks 1043 | . . 15 22 38 46 . . 16 25 34 . 21 35 1 . . 6 85 23 38 59 102 30 132 11 . 150 . . 70 28 23 25 8 . . Total Damage 25323 | . . 210 259 645 339 . . 606 600 439 . 380 743 44 . . 76 1400 449 611 1221 2405 550 2429 1432 . 5629 . . 1649 1079 696 955 477 . . Kills 165 | . . 4 5 10 3 . . 8 6 4 . 2 11 . . . 1 8 1 3 14 14 3 14 5 . 24 . . 7 8 4 4 2 . . Allies Corrupted 7 | . . . . . . . . . . . . . . . . . . . . . . . . 7 . . . . . . . . . . . . Allies Melted 1 | . . . . . . . . . . . . . . . . . . . . . . . . . . . 1 . . . . . . . . . Intel | -11 -10 -10 -9 -9 -8 -7 -7 -7 -7 -7 -7 -6 -6 -6 -6 -6 -5 -5 -5 -5 -5 -5 -5 -5 -4 -4 -4 -4 -4 -3 -3 -2 -2 -2 -1 -1 ------- Run | Scr Mat Min Mat Sto Mat Fac Was Fac Low Low Zio Pro Fac Low Low Dat Pro Fac Was Fac Ext Cet Arc Hub Fac Was Fac Arm Lab Res Tes Res Qua Sec Acc Com Robot Analysis Total 28 | . . . . . 1 2 . 3 . . . . 1 . . . . 2 . . . . . . 2 . 1 1 . 6 1 2 . 2 3 1 Derelict Logs Recovered 17 | . . 2 . . . . . . 2 1 1 3 . 3 2 . 3 . . . . . . . . . . . . . . . . . . . Drone Launches 13 | . . . . . . . . . . . . . . . . . . . . . 12 . . . . . . . . . . . . . 1 . Drone Recoveries . | . . . . . . . . . . . . . . . . . . . . . . . . . . . . . . . . . . . . . Exploration | -11 -10 -10 -9 -9 -8 -7 -7 -7 -7 -7 -7 -6 -6 -6 -6 -6 -5 -5 -5 -5 -5 -5 -5 -5 -4 -4 -4 -4 -4 -3 -3 -2 -2 -2 -1 -1 ------------- Run | Scr Mat Min Mat Sto Mat Fac Was Fac Low Low Zio Pro Fac Low Low Dat Pro Fac Was Fac Ext Cet Arc Hub Fac Was Fac Arm Lab Res Tes Res Qua Sec Acc Com Turns Passed 27690 | 15 587 416 931 702 731 2186 22 1752 683 463 584 503 2021 774 459 33 537 2116 70 1139 591 536 84 571 306 125 881 835 86 1488 849 1200 186 933 871 1424 Spaces Moved 41274 | 30 737 682 1150 940 1119 2755 68 3100 1165 854 827 879 2960 1032 883 99 938 3107 143 1301 915 568 119 1145 615 229 1190 882 10 2099 1023 1884 526 1822 1115 2363 Core 274 | 30 243 . . . . . . . . . . . . . . . . . . . 1 . . . . . . . . . . . . . . . Treads . | . . . . . . . . . . . . . . . . . . . . . . . . . . . . . . . . . . . . . Legs . | . . . . . . . . . . . . . . . . . . . . . . . . . . . . . . . . . . . . . Wheels . | . . . . . . . . . . . . . . . . . . . . . . . . . . . . . . . . . . . . . Hover . | . . . . . . . . . . . . . . . . . . . . . . . . . . . . . . . . . . . . . Flight 41000 | . 494 682 1150 940 1119 2755 68 3100 1165 854 827 879 2960 1032 883 99 938 3107 143 1301 914 568 119 1145 615 229 1190 882 10 2099 1023 1884 526 1822 1115 2363 Fastest Speed 20 | 50 40 37 37 32 32 29 29 29 32 32 32 32 26 32 32 26 32 26 26 26 26 32 32 26 32 32 26 26 37 30 32 21 21 20 20 24 Average Speed 31 | 50 43 38 37 34 32 31 29 31 32 32 32 32 31 32 32 31 32 31 30 31 31 32 32 31 32 32 31 34 37 35 33 28 26 26 24 24 Slowest Speed 100 | 50 100 40 37 37 32 32 32 32 32 32 32 32 32 32 32 32 35 32 32 32 100 32 32 32 32 32 32 37 37 37 34 85 27 27 27 24 Overloaded Moves 515 | . . . . . . 14 53 34 . . . . 4 . . 14 . 49 30 28 27 . . 65 . . 40 22 . 4 . 65 15 40 11 . Propulsion Burnouts . | . . . . . . . . . . . . . . . . . . . . . . . . . . . . . . . . . . . . . Robots Hopped 255 | . 12 6 23 18 19 24 . 30 . . . . 8 . . . . 8 . 12 1 . . 27 4 . 2 1 . 32 3 19 . 3 3 . Cave-ins Triggered 6 | . . . . . . . . . . . . . . . . . . . . . . 1 . . . . . . . . . . . . . 5 Teleports 1 | . . . . . . . . . . . . . . . . . . . . . . . . . . . . . . . . . . 1 . . Exploration Rate (%) 71 | 4 97 98 92 87 80 67 72 73 98 92 83 97 67 92 94 69 98 68 83 26 85 94 89 91 22 89 39 58 5 63 90 40 65 80 23 79 Regions Visited 36 Branch Regions 20 Pre-discovered Areas 5 | . . 1 . 1 . . . . 1 . . . . . 1 1 . . . . . . . . . . . . . . . . . . . . Known Exits Taken 22 | . 1 1 1 1 1 . . 1 1 1 . 1 1 1 . . 1 . . 1 1 . . 1 . . 1 . 1 1 1 1 . 1 1 . Unknown Exits Taken 8 | 1 . . . . . . . . . . 1 . . . 1 1 . . . . . 1 1 . . . . 1 . . . . 1 . . . Scrap Searched 29 | . . 2 . . . . . . 3 4 3 3 . 7 4 . 3 . . . . . . . . . . . . . . . . . . . Spaces Dug 302 | . . . . . . 3 . 17 2 1 . 5 42 . . . . 24 . 8 4 6 4 7 . . 16 23 . 28 14 19 6 12 14 47 Terrain Destroyed 1024 | . 11 2 30 22 66 102 . 17 2 1 . 5 42 . . . . 24 . 8 4 6 4 487 . . 16 23 . 28 14 19 6 12 14 59 Melee 278 | . . . . . . 3 . 17 2 1 . 5 42 . . . . 24 . 8 4 6 4 7 . . 16 23 . 28 14 19 6 12 14 23 Projectile 36 | . . . . . . . . . . . . . . . . . . . . . . . . . . . . . . . . . . . . 36 AOE 710 | . 11 2 30 22 66 99 . . . . . . . . . . . . . . . . . 480 . . . . . . . . . . . . Actions | -11 -10 -10 -9 -9 -8 -7 -7 -7 -7 -7 -7 -6 -6 -6 -6 -6 -5 -5 -5 -5 -5 -5 -5 -5 -4 -4 -4 -4 -4 -3 -3 -2 -2 -2 -1 -1 --------- Run | Scr Mat Min Mat Sto Mat Fac Was Fac Low Low Zio Pro Fac Low Low Dat Pro Fac Was Fac Ext Cet Arc Hub Fac Was Fac Arm Lab Res Tes Res Qua Sec Acc Com Total 52988 | 29 911 808 1459 1163 1324 3820 69 3632 1438 996 1145 1061 3852 1440 995 99 1136 4030 168 1936 1173 891 155 1257 701 275 1598 1340 91 2602 1451 2447 565 2197 1654 3080 Wait 8450 | . 128 91 140 134 99 825 2 376 215 73 314 142 720 362 50 . 148 643 26 546 163 284 23 50 38 25 238 369 82 254 315 355 16 220 461 523 Move 40758 | 29 714 670 1105 904 1084 2708 67 3041 1164 853 826 878 2945 1031 882 98 937 3091 142 1276 912 567 118 1098 608 228 1185 879 9 2037 1016 1848 525 1815 1109 2359 Hop 224 | . 10 5 21 17 15 23 . 28 . . . . 6 . . . . 8 . 12 1 . . 19 3 . 2 1 . 29 3 16 . 3 2 . Pick Up 63 | . . . 1 1 4 10 . 4 4 2 . 1 8 . . . 1 3 . 1 . . . . 2 1 . . . 6 . 2 6 2 1 3 Fast Attach 200 | . 4 1 12 4 7 21 . 12 2 . 3 . 13 . 1 . 2 10 . 4 . . . 3 4 2 6 9 . 21 10 7 1 29 9 3 Attach 19 | . . . . . . 10 . 2 . . . 1 . . . . . 3 . . . . . . . 1 . . . . . 1 . 1 . . Detach 8 | . . . . . . 4 . . . . . . . . . . . 3 . . . . . . . 1 . . . . . . . . . . Swap 82 | . . 1 5 4 3 3 . 4 . . . 2 7 3 . . 1 10 . 2 3 2 . . 1 1 3 4 . 9 7 5 . . . 2 Drop 215 | . . 1 8 2 7 26 . 16 3 2 2 . 21 . . . 3 11 . 3 . . . 2 7 4 4 9 . 29 13 8 7 13 9 5 Fire 421 | . 43 23 114 52 60 81 . . . . . . . . . . . . . . . . . 7 . . . . . . . . . . . 41 Melee 1403 | . . . . 3 . 13 . 91 25 34 . 20 113 21 40 1 25 152 . 67 32 25 8 53 22 8 75 55 . 130 52 107 10 69 53 99 Ram . | . . . . . . . . . . . . . . . . . . . . . . . . . . . . . . . . . . . . . Kick . | . . . . . . . . . . . . . . . . . . . . . . . . . . . . . . . . . . . . . Crush . | . . . . . . . . . . . . . . . . . . . . . . . . . . . . . . . . . . . . . Escape Stasis 101 | . . . . . . . . . . . . . . . . . . . . . . . . . . . 36 . . 8 18 36 . . . 3 Rewire 56 | . . . . . . . . . 1 . . . . . 6 . 5 . . . 39 . . 1 3 . . . . . . 1 . . . . Trap . | . . . . . . . . . . . . . . . . . . . . . . . . . . . . . . . . . . . . . Miscellaneous 988 | . 12 16 53 42 45 96 . 58 24 32 . 17 19 23 16 . 14 96 . 25 23 13 6 24 13 4 49 14 . 79 17 61 . 45 10 42 Route ------- -11/Scrapyard -10/Materials (discovered 4 exits: *Mat x3 / *Min) -10/Mines (discovered 2 exits: *Mat x2) -9/Materials (discovered 7 exits: *Mat x3 / *Min x2 / *Sto x2) -9/Storage -8/Materials (discovered 3 exits: *Fac x3) -7/Factory (discovered 6 exits: *Fac x4 / *Low x2) -7/Waste -7/Factory (discovered 6 exits: *Fac x4 / *Low x2) -7/Lower Caves -7/Lower Caves (discovered 2 exits: *Fac / *Zio) -7/Zion (discovered 2 exits: [*Dee] / [*Pro]) -6/Proximity Caves -6/Factory (discovered 5 exits: *Fac x3 / *Low x2) -6/Lower Caves -6/Lower Caves (discovered 2 exits: *Fac / *Dat) -6/Data Miner -5/Proximity Caves -5/Factory (discovered 8 exits: *Fac x4 / *Upp x2 / *Ext x2) -5/Waste -5/Factory (discovered 8 exits: Fac x4 / *Upp x2 / *Ext x2) -5/Extension (discovered 3 exits: *Fac x2 / *Cet) -5/Cetus (discovered 3 exits: *Fac x2 / *Arc) -5/Archives (discovered 3 exits: *Fac / *Hub x2) -5/Hub_04(d) (discovered 4 exits: *Fac x4) -4/Factory (discovered 7 exits: Res x4 / Upp x2 / Arm) -4/Waste -4/Factory (discovered 3 exits: *Upp x2 / *Arm) -4/Armory (discovered 3 exits: *Res x2 / [*Lab]) -4/Lab -3/Research (discovered 5 exits: *Res x3 / *Tes x2) -3/Testing -2/Research (discovered 5 exits: *Acc x3 / *Qua x2) -2/Quarantine (discovered 2 exits: *Acc / *Sec) -2/Section 7 -1/Access (discovered 2 exits: Sur / *Com) -1/Command (discovered 3 exits: *Sur x2 / [*Ac0]) History --------- Turn | Location | Event 2 | -11/Scrapyard | Discovered new exit (range 16) 16 | -11/Scrapyard | Entered Materials 23 | -10/Materials | Identified exit to Mines 94 | -10/Materials | Upgraded with Weapon slot (x1) 281 | -10/Materials | Discovered new exit (range 13) 304 | -10/Materials | Identified exit to Materials 324 | -10/Materials | Build established: Hacker-Mutant 417 | -10/Materials | Central database locked down 441 | -10/Materials | Core integrity fell below 50% 472 | -10/Materials | Reached level 2 603 | -10/Materials | Entered Mines 606 | -10/Mines | Discovered exit to Materials (range 6) 607 | -10/Mines | Learned location of Storage (-9) 719 | -10/Mines | Reached level 3 739 | -10/Mines | Upgraded with Propulsion slot (x1) 830 | -10/Mines | Learned 2 Materials zone layouts 839 | -10/Mines | Discovered exit to Materials (range 5) 842 | -10/Mines | Assisted by bots powering up and referring to "LRC-V3" 1019 | -10/Mines | Entered Materials 1019 | -9/Materials | Accompanied by 5 allies 1020 | -9/Materials | Identified exit to Mines 1021 | -9/Materials | Reached level 4 1022 | -9/Materials | Discovered new exit (range 16) 1044 | -9/Materials | Reached level 5 1067 | -9/Materials | Upgraded with Utility slot (x3) 1205 | -9/Materials | Identified exit to Storage 1271 | -9/Materials | Reached level 6 1390 | -9/Materials | Core integrity fell below 50% 1412 | -9/Materials | Identified exit to Materials 1466 | -9/Materials | Reached level 7 1487 | -9/Materials | Destroyed 7 combat bots 1522 | -9/Materials | Upgraded with Weapon slot (x1) 1743 | -9/Materials | Upgraded with Power slot (x1) 1850 | -9/Materials | Reached level 8 1950 | -9/Materials | Entered Storage 1950 | -9/Storage | Accompanied by 1 ally 1967 | -9/Storage | Upgraded with Weapon slot (x1) 2008 | -9/Storage | Learned location of Armory (-4) 2009 | -9/Storage | Build established: Hacker-Gunner 2020 | -9/Storage | Met a pair of Derelict thieves 2040 | -9/Storage | Reached level 9 2155 | -9/Storage | Central database locked down 2233 | -9/Storage | Upgraded with Utility slot (x1) 2350 | -9/Storage | First assault squad dispatched 2375 | -9/Storage | Reached level 10 2438 | -9/Storage | Destroyed 10 combat bots 2517 | -9/Storage | Garrison activated, responded to threat 2530 | -9/Storage | Build established: Hacker-Sprinter 2652 | -9/Storage | Entered Materials 2652 | -8/Materials | Accompanied by 8 allies 2654 | -8/Materials | Reached level 11 2674 | -8/Materials | Reached level 12 2927 | -8/Materials | Identified exit to Factory 2970 | -8/Materials | Upgraded with Utility slot (x2) 3025 | -8/Materials | Reached level 13 3180 | -8/Materials | Garrison activated, responded to threat 3383 | -8/Materials | Entered Factory 3383 | -7/Factory | Accompanied by 1 ally 3385 | -7/Factory | Reached level 14 3435 | -7/Factory | Identified exit to Lower Caves 3618 | -7/Factory | Reached level 15 3741 | -7/Factory | Discovered new exit (range 8) 4001 | -7/Factory | Discovered new exit (range 10) 4092 | -7/Factory | Garrison activated, responded to threat 4261 | -7/Factory | Upgraded with Utility slot (x1) 4291 | -7/Factory | Reached level 16 4431 | -7/Factory | Discovered new exit (range 14) 4578 | -7/Factory | Discovered new exit (range 15) 4583 | -7/Factory | First assault squad dispatched 4837 | -7/Factory | Fabricated Imp. Melee Analysis Suite (x1) 4866 | -7/Factory | Fabricated Imp. Melee Analysis Suite (x1) 4943 | -7/Factory | Fabricated Falx (x2) 4971 | -7/Factory | Fabricated Imp. System Shield (x1) 4972 | -7/Factory | Upgraded with Utility slot (x2) 4997 | -7/Factory | Fabricated Imp. System Shield (x1) 5184 | -7/Factory | Local fabrication network quarantined 5569 | -7/Factory | Manually triggered Chute Trap 5569 | -7/Factory | Sucked down chute 5569 | -7/Factory | Entered Waste 5572 | -7/Waste | Spotted C-40 Crusher 5580 | -7/Waste | Spotted C-40 Crusher 5584 | -7/Waste | EMP discharged 5584 | -7/Waste | Spotted C-40 Crusher 5586 | -7/Waste | Spotted C-40 Crusher 5586 | -7/Waste | Discovered new exit (range 12) 5591 | -7/Waste | Entered Factory 5901 | -7/Factory | Identified exit to Factory 5994 | -7/Factory | Garrison activated, responded to threat 6094 | -7/Factory | Reached level 17 6385 | -7/Factory | Garrison activated, responded to threat 6784 | -7/Factory | Central database locked down 6922 | -7/Factory | Fabricated Imp. Hacking Suite (x1) 6991 | -7/Factory | Fabricated Spear (x2) 7010 | -7/Factory | Fabricated Imp. Maneuvering Thrusters (x1) 7045 | -7/Factory | Fabricated Imp. Armor Integrity Analyzer (x1) 7158 | -7/Factory | Fabricated Imp. Target Analyzer (x1) 7343 | -7/Factory | Entered Lower Caves 7343 | -7/Lower Caves | Accompanied by 9 allies 7345 | -7/Lower Caves | Reached level 18 7403 | -7/Lower Caves | Spotted B-75 Beast 7418 | -7/Lower Caves | Learned Factory stockpile data 7443 | -7/Lower Caves | Encountered a Warlord checkpoint 7536 | -7/Lower Caves | Discovered new exit (range 5) 7652 | -7/Lower Caves | Destroyed B-75 Beast 7693 | -7/Lower Caves | Attracted the attention of an 0b10 base 7717 | -7/Lower Caves | Core integrity fell below 50% 7751 | -7/Lower Caves | Learned location of Extension (-5) 7751 | -7/Lower Caves | Learned location of 2 exits from Lower Caves 7751 | -7/Lower Caves | Learned 6 Proximity Caves zone layouts 7751 | -7/Lower Caves | Identified exit to Lower Caves 7754 | -7/Lower Caves | Learned Factory emergency access door positions 7773 | -7/Lower Caves | Found Alien Artifact 7773 | -7/Lower Caves | Identified Core Expander 7773 | -7/Lower Caves | Installed Core Expander, added new Weapon slot 8026 | -7/Lower Caves | Entered another Lower Caves area 8026 | -7/Lower Caves | Accompanied by 8 allies 8026 | -7/Lower Caves | Discovered exit to Factory (range 11) 8027 | -7/Lower Caves | Identified exit to Zion 8065 | -7/Lower Caves | Learned location of 1 exit from Factory 8065 | -7/Lower Caves | Learned Armory trap positions 8065 | -7/Lower Caves | Learned Extension emergency access door positions 8065 | -7/Lower Caves | Learned Armory security intel 8145 | -7/Lower Caves | Attracted the attention of an 0b10 base 8205 | -7/Lower Caves | Destroyed 10 combat bots 8212 | -7/Lower Caves | Learned location of 1 exit from Factory 8220 | -7/Lower Caves | Learned 8 Factory zone layouts 8220 | -7/Lower Caves | Learned 6 Upper Caves zone layouts 8220 | -7/Lower Caves | Learned Factory security intel 8220 | -7/Lower Caves | Learned Extension security intel 8220 | -7/Lower Caves | Learned Research terminal intel 8220 | -7/Lower Caves | Learned Armory terminal intel 8489 | -7/Lower Caves | Entered Zion 8489 | -7/Zion | Accompanied by 8 allies 8507 | -7/Zion | Found Prototype Device 8507 | -7/Zion | Identified Mobile Refinery Mk. CCLXVII 8520 | -7/Zion | Discovered new exit (range 8) 8523 | -7/Zion | Given A8's code to call for help 8557 | -7/Zion | Loaded intel: 5 derelict terminal locations 8621 | -7/Zion | Acquired unknown access codes intercepted by a Zionite 8688 | -7/Zion | Gained Derelict followers 8719 | -7/Zion | Opened final containment barrier to the Deep Caves 8724 | -7/Zion | Discovered new exit (range 3) 8724 | -7/Zion | Saw the warning signs outside the Deep Caves entrance 9073 | -7/Zion | Entered Proximity Caves 9073 | -6/Proximity Caves | Accompanied by 9 allies 9075 | -6/Proximity Caves | Reached level 19 9076 | -6/Proximity Caves | Upgraded with Utility slot (x1) 9129 | -6/Proximity Caves | Spotted B-75 Beast 9157 | -6/Proximity Caves | Destroyed B-75 Beast 9296 | -6/Proximity Caves | Learned 4 Factory zone layouts 9342 | -6/Proximity Caves | P-60 Hacker assimilated allied G-47 Trooper 9386 | -6/Proximity Caves | Attracted the attention of an 0b10 checkpoint 9410 | -6/Proximity Caves | Learned Factory terminal intel 9480 | -6/Proximity Caves | Discovered exit to Factory (range 16) 9514 | -6/Proximity Caves | Learned Factory trap positions 9576 | -6/Proximity Caves | Entered Factory 9576 | -6/Factory | Accompanied by 6 allies 9577 | -6/Factory | Identified exit to Lower Caves 9578 | -6/Factory | Identified exit to Factory 9580 | -6/Factory | Loaded intel: 106 trap records 9584 | -6/Factory | Loaded intel: 20 terminal locations 9629 | -6/Factory | Reached level 20 9652 | -6/Factory | Spotted B-75 Beast 9652 | -6/Factory | Destroyed B-75 Beast 10746 | -6/Factory | Fabricated Imp. Core Analyzer? 10756 | -6/Factory | Fabricated Lance (x2) 10792 | -6/Factory | Fabricated Imp. Phase Shifter? 10796 | -6/Factory | Fabricated Lance? 11130 | -6/Factory | Fabricated Actuator Array (x1) 11137 | -6/Factory | Build established: Machinist-Sprinter 11233 | -6/Factory | Fabricated Imp. Actuator Array (x1) 11406 | -6/Factory | Local fabrication network quarantined 11597 | -6/Factory | Entered Lower Caves 11597 | -6/Lower Caves | Accompanied by 1 ally 11598 | -6/Lower Caves | Encountered a Warlord checkpoint 11598 | -6/Lower Caves | Identified exit to Lower Caves 11599 | -6/Lower Caves | Reached level 21 11611 | -6/Lower Caves | Learned Factory terminal intel 11636 | -6/Lower Caves | Attracted the attention of an 0b10 checkpoint 11683 | -6/Lower Caves | Spotted B-75 Beast 11714 | -6/Lower Caves | Destroyed B-75 Beast 11718 | -6/Lower Caves | Learned 4 Factory zone layouts 12371 | -6/Lower Caves | Entered another Lower Caves area 12375 | -6/Lower Caves | Discovered exit to Factory (range 10) 12400 | -6/Lower Caves | Attacked by a faux Warlord 12465 | -6/Lower Caves | Destroyed 8 combat bots 12675 | -6/Lower Caves | Discovered new exit (range 23) 12720 | -6/Lower Caves | Learned Factory trap positions 12729 | -6/Lower Caves | Attracted the attention of an 0b10 outpost 12799 | -6/Lower Caves | Destroyed 7 combat bots 12830 | -6/Lower Caves | Entered Data Miner 12830 | -6/Data Miner | Accompanied by 1 ally 12830 | -6/Data Miner | Discovered new exit (range 6) 12837 | -6/Data Miner | Met Data Miner 12846 | -6/Data Miner | Learned location of Section 7 (-2) 12846 | -6/Data Miner | Acquired the access code to Warlord's prototype stash 12851 | -6/Data Miner | Received God Mode back door access code from Data Miner 12858 | -6/Data Miner | Data Conduit disabled 12863 | -6/Data Miner | Entered Proximity Caves 12872 | -5/Proximity Caves | Learned Factory interactive machine intel 13071 | -5/Proximity Caves | Reached level 22 13085 | -5/Proximity Caves | Attracted the attention of an 0b10 checkpoint 13125 | -5/Proximity Caves | Attracted the attention of an 0b10 outpost 13172 | -5/Proximity Caves | Destroyed 7 combat bots 13206 | -5/Proximity Caves | Discovered exit to Factory (range 16) 13214 | -5/Proximity Caves | Learned Factory emergency access door positions 13214 | -5/Proximity Caves | Learned Factory terminal intel 13236 | -5/Proximity Caves | Build established: Hacker-Sprinter 13400 | -5/Proximity Caves | Entered Factory 13400 | -5/Factory | Accompanied by 2 allies 13401 | -5/Factory | Identified exit to Upper Caves 13401 | -5/Factory | Identified exit to Extension 13403 | -5/Factory | Loaded intel: 64 trap records 13405 | -5/Factory | Loaded intel: 47 interactive machine locations 13406 | -5/Factory | Loaded intel: 21 terminal locations 13457 | -5/Factory | Discovered new exit (range 2) 13603 | -5/Factory | Reached level 23 13606 | -5/Factory | Upgraded with Utility slot (x1) 13644 | -5/Factory | Destroyed 7 combat bots 13809 | -5/Factory | Discovered new exit (range 22) 13871 | -5/Factory | Spotted B-75 Beast 13977 | -5/Factory | Build established: Wizard-Sprinter 13979 | -5/Factory | Discovered new exit (range 9) 14208 | -5/Factory | Central database locked down 14208 | -5/Factory | Adv. Hacking Suite fried by hacking feedback 14209 | -5/Factory | Garrison activated, responded to threat 14283 | -5/Factory | Destroyed 7 combat bots 14565 | -5/Factory | Reached level 24 14612 | -5/Factory | Discovered new exit (range 10) 14710 | -5/Factory | Identified exit to Factory 14740 | -5/Factory | Adv. Hacking Suite fried by hacking feedback 14873 | -5/Factory | Fabricated Reaction Control System? 14878 | -5/Factory | Fabricated Adv. Actuator Array? 14900 | -5/Factory | First assault squad dispatched 14940 | -5/Factory | Fabricated S-27 Virus? 14954 | -5/Factory | Fabricated Adv. Target Analyzer? 15007 | -5/Factory | Fabricated I-36 Angel (x1) 15030 | -5/Factory | Build established: Hacker-Sprinter 15499 | -5/Factory | Fabricated Exp. System Shield (x1) 15516 | -5/Factory | Manually triggered Chute Trap 15516 | -5/Factory | Sucked down chute 15516 | -5/Factory | Entered Waste 15522 | -5/Waste | Spotted C-40 Crusher 15524 | -5/Waste | Spotted C-40 Crusher 15532 | -5/Waste | Spotted C-40 Crusher 15559 | -5/Waste | Spotted C-40 Crusher 15566 | -5/Waste | Spotted C-40 Crusher 15569 | -5/Waste | Spotted C-40 Crusher 15570 | -5/Waste | Discovered new exit (range 14) 15575 | -5/Waste | 4 allies followed down the chute 15580 | -5/Waste | 4 allies followed down the chute 15586 | -5/Waste | Entered Factory 15587 | -5/Factory | Loaded intel: 22 terminal locations 15589 | -5/Factory | Discovered exit to Upper Caves (range 21) 15708 | -5/Factory | Central database locked down 15764 | -5/Factory | Exp. System Shield fried by hacking feedback 15926 | -5/Factory | Fabricated Exp. System Shield (x1) 15993 | -5/Factory | Fabricated Adv. Force Field? 16029 | -5/Factory | Garrison activated, responded to threat 16158 | -5/Factory | Fabricated Adv. Target Analyzer? 16215 | -5/Factory | Fabricated Kinetic Spear (x1) 16231 | -5/Factory | Reached level 25 16487 | -5/Factory | Local fabrication network quarantined 16531 | -5/Factory | Spotted B-75 Beast 16544 | -5/Factory | Destroyed B-75 Beast 16725 | -5/Factory | Entered Extension 16725 | -5/Extension | Accompanied by 5 allies 16742 | -5/Extension | Identified exit to Cetus 16743 | -5/Extension | Rescued A7 16747 | -5/Extension | Rescued a captive Derelict 16749 | -5/Extension | Rescued a captive Derelict 16767 | -5/Extension | Rescued a captive Derelict 16829 | -5/Extension | Rescued a captive Derelict 16832 | -5/Extension | Rescued a captive Derelict 16833 | -5/Extension | Rescued a captive Derelict 16838 | -5/Extension | Rescued a captive Derelict 16854 | -5/Extension | Spotted B-75 Beast 16861 | -5/Extension | Spotted B-75 Beast 16879 | -5/Extension | Destroyed B-75 Beast 16885 | -5/Extension | Destroyed B-75 Beast 17025 | -5/Extension | First assault squad dispatched 17030 | -5/Extension | Rescued a captive Derelict 17031 | -5/Extension | Rescued a captive Derelict 17147 | -5/Extension | Rescued a captive Derelict 17147 | -5/Extension | Rescued a captive Derelict 17225 | -5/Extension | Disrupted transfer network 17235 | -5/Extension | Disrupted transfer network 17316 | -5/Extension | Entered Cetus 17316 | -5/Cetus | Accompanied by 18 allies 17321 | -5/Cetus | Acquired a Cetus Manufacturing Module code from A7 17322 | -5/Cetus | Spotted Cetus Guard 17322 | -5/Cetus | Spotted Cetus Guard 17325 | -5/Cetus | Spotted Cetus Guard 17325 | -5/Cetus | Spotted Cetus Guard 17329 | -5/Cetus | Destroyed Cetus Guard 17330 | -5/Cetus | Allies destroyed Cetus Guard 17337 | -5/Cetus | Allies destroyed Cetus Guard 17341 | -5/Cetus | Destroyed Cetus Guard 17357 | -5/Cetus | Discovered exit to Factory (range 22) 17379 | -5/Cetus | Started Cetus Manufacturing Module 17404 | -5/Cetus | Manufactured an Enhanced Grunt 17429 | -5/Cetus | Manufactured an Enhanced Grunt 17454 | -5/Cetus | Manufactured an Enhanced Grunt 17479 | -5/Cetus | Manufactured an Enhanced Grunt 17504 | -5/Cetus | Manufactured an Enhanced Grunt 17609 | -5/Cetus | Discovered new exit (range 15) 17615 | -5/Cetus | Spotted Cetus Guard 17616 | -5/Cetus | Spotted Cetus Guard 17661 | -5/Cetus | Spotted Cetus Guard 17661 | -5/Cetus | Spotted Cetus Guard 17664 | -5/Cetus | Destroyed Cetus Guard 17668 | -5/Cetus | Allies destroyed Cetus Guard 17674 | -5/Cetus | Allies destroyed Cetus Guard 17719 | -5/Cetus | Discovered exit to Factory (range 16) 17721 | -5/Cetus | Met Revision 17 17760 | -5/Cetus | P-70 Sage assimilated allied KH-25R(h) 17850 | -5/Cetus | Crushed by falling debris 17852 | -5/Cetus | Entered Archives 17852 | -5/Archives | Accompanied by 20 allies 17858 | -5/Archives | Unable to access archive contents 17860 | -5/Archives | Discovered exit to Factory (range 13) 17861 | -5/Archives | Discovered new exit (range 20) 17864 | -5/Archives | Reached level 26 17880 | -5/Archives | Discovered new exit (range 16) 17936 | -5/Archives | Entered Hub_04(d) 17936 | -5/Hub_04(d) | Accompanied by 18 allies 17939 | -5/Hub_04(d) | Discovered exit to Factory (range 22) 17940 | -5/Hub_04(d) | Discovered exit to Factory (range 3) 17976 | -5/Hub_04(d) | Discovered exit to Factory (range 18) 18163 | -5/Hub_04(d) | Garrison activated, responded to threat 18174 | -5/Hub_04(d) | Garrison activated, responded to threat 18177 | -5/Hub_04(d) | Spotted B-75 Beast 18179 | -5/Hub_04(d) | Destroyed B-75 Beast 18194 | -5/Hub_04(d) | P-70 Sage assimilated hostile L-41 Fighter 18468 | -5/Hub_04(d) | Network Hub disabled 18468 | -5/Hub_04(d) | Network Hub disabled 18468 | -5/Hub_04(d) | Allied Derelicts emerged from ambush trap array 18484 | -5/Hub_04(d) | Spotted Lightning 18491 | -5/Hub_04(d) | Network Hub disabled 18491 | -5/Hub_04(d) | Spotted Lightning 18491 | -5/Hub_04(d) | Spotted Lightning 18491 | -5/Hub_04(d) | Spotted Lightning 18507 | -5/Hub_04(d) | Entered Factory 18507 | -4/Factory | Accompanied by 5 allies 18549 | -4/Factory | Reached level 27 18555 | -4/Factory | Garrison activated, responded to threat 18584 | -4/Factory | Identified exit to Research 18745 | -4/Factory | Identified exit to Upper Caves 18745 | -4/Factory | Identified exit to Armory 18757 | -4/Factory | First assault squad dispatched 18790 | -4/Factory | High security lockdown imminent 18813 | -4/Factory | Manually triggered Chute Trap 18813 | -4/Factory | Sucked down chute 18813 | -4/Factory | Entered Waste 18814 | -4/Waste | Joined by Warlord forces that had cleared the area 18835 | -4/Waste | Found Prototype Device 18835 | -4/Waste | Identified Exp. Weapon Cycler 18887 | -4/Waste | Discovered new exit (range 13) 18921 | -4/Waste | Upgraded with Utility slot (x1) 18938 | -4/Waste | Entered Factory 18938 | -4/Factory | Accompanied by 20 allies 18957 | -4/Factory | Garrison activated, responded to threat 19016 | -4/Factory | Spotted B-86 Titan 19041 | -4/Factory | Destroyed B-86 Titan 19133 | -4/Factory | Reached level 28 19188 | -4/Factory | First assault squad dispatched 19486 | -4/Factory | Build established: Wizard-Sprinter 19526 | -4/Factory | Discovered exit to Upper Caves (range 4) 19677 | -4/Factory | High security lockdown imminent 19698 | -4/Factory | Destroyed 7 combat bots 19740 | -4/Factory | Local fabrication network quarantined 19745 | -4/Factory | Fabricated Enh. Force Lance (x1) 19757 | -4/Factory | High security lockdown engaged 19819 | -4/Factory | Entered Armory 19820 | -4/Armory | Loaded intel: 29 trap records 19822 | -4/Armory | Loaded intel: 14 terminal locations 20137 | -4/Armory | Fabricated Q-thruster (x2) 20188 | -4/Armory | Fabricated Exp. System Shield (x1) 20261 | -4/Armory | Fabricated Exp. Hacking Suite (x1) 20308 | -4/Armory | Fabricated Exp. Hacking Suite (x1) 20330 | -4/Armory | Spotted B-86 Titan 20397 | -4/Armory | Destroyed B-86 Titan 20428 | -4/Armory | Local fabrication network quarantined 20430 | -4/Armory | Build established: Wizard-Mutant 20653 | -4/Armory | Discovered new exit (range 4) 20654 | -4/Armory | Entered Lab 20654 | -4/Lab | Discovered exit to Research (range 9) 20740 | -4/Lab | Entered Research 20741 | -3/Research | Loaded intel: 18 terminal locations 20742 | -3/Research | Reached level 29 20811 | -3/Research | Identified exit to Testing 20811 | -3/Research | Identified exit to Research 20908 | -3/Research | Found Prototype Device 20908 | -3/Research | Identified System Purifier 21070 | -3/Research | Found Prototype Device 21070 | -3/Research | Identified Exp. Transmission Jammer 21423 | -3/Research | Spotted B-86 Titan 21444 | -3/Research | Destroyed B-86 Titan 21486 | -3/Research | Found Prototype Device 21486 | -3/Research | Identified Exp. Shield Generator 21574 | -3/Research | Central database locked down 21670 | -3/Research | Reached level 30 21786 | -3/Research | Found Prototype Device 21786 | -3/Research | Identified Exp. ECM Suite 21819 | -3/Research | Fabricated Adv. Force Booster? 21826 | -3/Research | Fabricated Exp. Core Analyzer? 21902 | -3/Research | Fabricated Adv. Reaction Control System (x1) 21912 | -3/Research | Fabricated Exp. Target Analyzer? 22038 | -3/Research | Local fabrication network quarantined 22147 | -3/Research | Garrison activated, responded to threat 22175 | -3/Research | Found Enh. Force Lance 22177 | -3/Research | Found Enh. Force Lance 22180 | -3/Research | Found Enh. Force Lance 22228 | -3/Research | Entered Testing 22228 | -3/Testing | Accompanied by 1 ally 22368 | -3/Testing | Protovariant out of control (PY-JSJQ4767F8) 22368 | -3/Testing | Unleashed a protovariant (PY-JSJQ4767F8) 22409 | -3/Testing | Spotted PY-JSJQ4767F8 22421 | -3/Testing | Destroyed PY-JSJQ4767F8 22455 | -3/Testing | Spotted Striker 22455 | -3/Testing | Spotted Striker 22515 | -3/Testing | Found Prototype Device 22515 | -3/Testing | Identified Exp. Hardlight Generator 22662 | -3/Testing | Found Prototype Slashing Weapon 22662 | -3/Testing | Identified Vibroblade 22742 | -3/Testing | Found Prototype Device 22742 | -3/Testing | Identified AEGIS Remote Shield 22878 | -3/Testing | Fabricated Exp. Armor Integrity Analyzer (x1) 22916 | -3/Testing | Fabricated Femtoactuators (x1) 22955 | -3/Testing | Fabricated Exp. Phase Shifter (x1) 22983 | -3/Testing | Fabricated Exp. Terrain Scanner (x1) 23017 | -3/Testing | Fabricated Cld. Field Propulsion Drive (x1) 23032 | -3/Testing | Local fabrication network quarantined 23077 | -3/Testing | Entered Research 23079 | -2/Research | Reached level 31 23104 | -2/Research | Upgraded with Utility slot (x1) 23149 | -2/Research | Spotted B-90 Cyclops 23181 | -2/Research | Identified exit to Access 23256 | -2/Research | Reached level 32 23315 | -2/Research | Build established: Wizard-Sprinter 23381 | -2/Research | Destroyed 12 combat bots 23526 | -2/Research | Spotted B-90 Cyclops 23531 | -2/Research | Destroyed B-90 Cyclops 23577 | -2/Research | First assault squad dispatched 23608 | -2/Research | Fabricated Exp. Actuator Array (x1) 23642 | -2/Research | Fabricated Exp. Melee Analysis Suite? 23691 | -2/Research | Fabricated Cld. Fission Core (x1) 23714 | -2/Research | Spotted B-90 Cyclops 23721 | -2/Research | Destroyed B-90 Cyclops 23744 | -2/Research | Identified exit to Quarantine 23943 | -2/Research | Spotted B-90 Cyclops 23944 | -2/Research | Destroyed B-90 Cyclops 24063 | -2/Research | Reached level 33 24068 | -2/Research | P-80 Master assimilated hostile S-43 Plague 24156 | -2/Research | Fabricated Mni. Fusion Reactor (x1) 24277 | -2/Research | Entered Quarantine 24277 | -2/Quarantine | Accompanied by 11 allies 24342 | -2/Quarantine | Found Alien Artifact 24391 | -2/Quarantine | Found Alien Artifact 24405 | -2/Quarantine | Found Alien Artifact 24442 | -2/Quarantine | Spotted Fortress 24462 | -2/Quarantine | Discovered new exit (range 5) 24463 | -2/Quarantine | Entered Section 7 24487 | -2/Section 7 | Found Alien Artifact 24487 | -2/Section 7 | Identified Integrated Dissipator 24487 | -2/Section 7 | Installed Integrated Dissipator, increased core heat dissipation (+2%) 24500 | -2/Section 7 | Discovered exit to Access (range 16) 24549 | -2/Section 7 | Spotted B-90 Cyclops 24554 | -2/Section 7 | Destroyed B-90 Cyclops 24641 | -2/Section 7 | Spotted Executioner 24664 | -2/Section 7 | Found Alien Artifact 24664 | -2/Section 7 | Identified Transdimensional Reconstructor 24664 | -2/Section 7 | Warped through subspace 24704 | -2/Section 7 | Spotted B-99 Colossus 24734 | -2/Section 7 | Central database locked down 24797 | -2/Section 7 | Found Alien Artifact 24797 | -2/Section 7 | Identified LRC Matter Compressor 24797 | -2/Section 7 | Installed LRC Matter Compressor, increased matter storage capacity (+125) 24801 | -2/Section 7 | Identified Subatomic Replicator 24801 | -2/Section 7 | Used Subatomic Replicator to replicate Alien Artifact 24802 | -2/Section 7 | Found Alien Artifact 24802 | -2/Section 7 | Identified LRC Insulator 24802 | -2/Section 7 | Installed LRC Insulator, gained EM resistance (25) 24804 | -2/Section 7 | Installed LRC Insulator, gained EM resistance (25) 24819 | -2/Section 7 | Found Core Expander 24819 | -2/Section 7 | Installed Core Expander, added new Propulsion slot 24821 | -2/Section 7 | Found Core Expander 24821 | -2/Section 7 | Installed Core Expander, added new Weapon slot 24859 | -2/Section 7 | Found Prototype Launcher 24859 | -2/Section 7 | Identified Gui. Micro-nuke Launcher 24880 | -2/Section 7 | Spotted B-90 Cyclops 24946 | -2/Section 7 | Found Alien Artifact 24946 | -2/Section 7 | Identified Integrity Redistributor 24946 | -2/Section 7 | Used Integrity Redistributor, redistributed integrity from core (-2) 24994 | -2/Section 7 | Reached level 34 25006 | -2/Section 7 | P-80 Master assimilated hostile S-43 Plague 25011 | -2/Section 7 | Spotted S7 Guard 25011 | -2/Section 7 | Spotted S7 Guard 25026 | -2/Section 7 | Destroyed S7 Guard 25027 | -2/Section 7 | Core integrity fell below 50% 25039 | -2/Section 7 | Destroyed S7 Guard 25060 | -2/Section 7 | Destroyed 10 combat bots 25067 | -2/Section 7 | Found Alien Artifact 25067 | -2/Section 7 | Identified Integrated Heat Negator 25067 | -2/Section 7 | Installed Integrated Heat Negator, increased core heat dissipation (+2%) 25080 | -2/Section 7 | Found Alien Artifact 25080 | -2/Section 7 | Identified Integrated Singularity Reactor 25080 | -2/Section 7 | Installed Integrated Singularity Reactor, increased core energy generation (+2%) 25167 | -2/Section 7 | Found Integrated Dissipator 25167 | -2/Section 7 | Installed Integrated Dissipator, increased core heat dissipation (+2%) 25179 | -2/Section 7 | Found Alien Artifact 25179 | -2/Section 7 | Identified Integrated Reactor 25179 | -2/Section 7 | Installed Integrated Reactor, increased core energy generation (+2%) 25238 | -2/Section 7 | Spotted S7 Guard 25242 | -2/Section 7 | Destroyed S7 Guard 25252 | -2/Section 7 | Found Alien Artifact 25252 | -2/Section 7 | Identified Core Membrane 25252 | -2/Section 7 | Installed Core Membrane, gained immunity to corruption 25396 | -2/Section 7 | Entered Access 25396 | -1/Access | Accompanied by 1 ally 25428 | -1/Access | Identified exit to Surface 25433 | -1/Access | Identified exit to Command 25568 | -1/Access | Fabricated Cld. Q-thruster (x1) 25602 | -1/Access | Fabricated Enh. Force Lance (x1) 25636 | -1/Access | Fabricated Enh. Force Lance (x1) 25662 | -1/Access | Reached level 35 25771 | -1/Access | Destroyed 10 combat bots 25823 | -1/Access | Spotted B-99 Colossus 25870 | -1/Access | Destroyed B-99 Colossus 25902 | -1/Access | Build established: Machinist-Sprinter 25940 | -1/Access | Fabricated Exp. Melee Analysis Suite (x1) 25981 | -1/Access | Fabricated Exp. Melee Analysis Suite? 26196 | -1/Access | Local fabrication network quarantined 26262 | -1/Access | Central database locked down 26267 | -1/Access | Entered Command 26267 | -1/Command | Accompanied by 1 ally 26322 | -1/Command | Spotted B-99 Colossus 26332 | -1/Command | Destroyed B-99 Colossus 26392 | -1/Command | Central database locked down 26447 | -1/Command | Disengaged cave seal 26496 | -1/Command | Spotted Combat Programmer 26503 | -1/Command | Spotted M Guard 26503 | -1/Command | Spotted Combat Programmer 26507 | -1/Command | Destroyed Combat Programmer 26511 | -1/Command | Reached level 36 26511 | -1/Command | Destroyed Combat Programmer 26519 | -1/Command | Destroyed M Guard 26519 | -1/Command | Spotted M Guard 26527 | -1/Command | Destroyed M Guard 26527 | -1/Command | Destroyed all MAIN.C guards 26539 | -1/Command | Core integrity fell below 50% 26565 | -1/Command | Destroyed 7 combat bots 26586 | -1/Command | Met MAIN.C 26640 | -1/Command | Destroyed MAIN.C Shell 26642 | -1/Command | MAIN.C activated Command garrisons 26649 | -1/Command | Reached level 37 26649 | -1/Command | Destroyed MAIN.C 26849 | -1/Command | 0b10 Conduit disabled 27075 | -1/Command | Spotted B-99 Colossus 27081 | -1/Command | Destroyed B-99 Colossus 27161 | -1/Command | Spotted Alpha 7 27165 | -1/Command | Destroyed Alpha 7 27387 | -1/Command | Crushed by falling debris 27667 | -1/Command | Crushed by falling debris 27679 | -1/Command | Crushed by falling debris 27686 | -1/Command | Discovered new exit (range 5) 27688 | -1/Command | Crushed by falling debris 27689 | -1/Command | Core integrity fell below 20% 27691 | -1/Command | Crushed by falling debris 27691 | -1/Command | Smashed by cave-in Last Messages --------------- 27310_ Destroyed Prototype Energy Gun. 27310_ Destroyed Unknown Hover Unit. 27310_ Destroyed Lgt. Particle Reactor. 27310_ Destroyed Prototype Energy Gun. 27310_ Destroyed Unknown Hover Unit. 27310_ Sneak attack on P-80 Master. 27310_ Enh. Force Lance follow-up attack on P-80 Master. 27310_ P-80 Master destroyed. 27341_ Terminal disabled. 27387_ The unstable cave ceiling collapses. 27387_ Crushed by falling debris. 27455_ The unstable cave ceiling collapses. 27667_ Crushed by falling debris. 27679_ The unstable cave ceiling collapses. 27679_ Crushed by falling debris. 27686_ EXIT=FOUND 27688_ The unstable cave ceiling collapses. 27688_ Crushed by falling debris. 27691_ The unstable cave ceiling collapses. 27691_ Crushed by falling debris. Map ----- +----------------------------------------------------+ | ###??########################### | | ?#?##??#?####################### | | ?###?????#?##################### | | #??##??####?#################### | | ##??#####?###################### | | ?##??######?#################### | | ??##?########################### | | ####????######################## | | ###?#?########################## | | #?#?###?##?##################### | | ######?###?##################### | | ################################ | | #########?###################### | | #####???##?##################### | | ################################ | | ################################ | | #####?########################## | | ########?####################### | | ##### ?######################### | | #?## ?######################### | | ?## "######################### | | ### ?######################### | | ### ?######################### | | ##? < ######################### | | ### ######################### | | ### #@######################## | | ###?#### ############# ######### | | ####?### # ## | | ##?############################# | | ######?######################### | | ##?############################# | | #?#####?######################## | | #?############################## | | ##?#?########################### | | ####?###?####################### | | #####?########################## | | #?############################## | | ################################ | | ####??####?##################### | | #####?########################## | | ##?##?########################## | | ?############################### | | ##?############################# | | ?#??######?##################### | | ##?#?#?##?###################### | | ######?###?##################### | | #?#??#?######################### | | ###?#?########################## | | ###?#?#??####################### | | ?#?########?#################### | +----------------------------------------------------+ Best States ------------- Heat Dissipation 117 Energy Generation 88 Energy Capacity 710 Matter Stores 425 Matter Capacity 425 Sight Range 16 Terrain Scan Range 30 Terrain Scan Density 410 Resistance: EM 25 Reclamation Efficiency 25 Melee Speed Boost 50 Phase Shifting 20 Evasion (%) 100 Targeting Accuracy 32 Melee Accuracy 36 Target Analysis 12 Core Analysis 15 Armor Integrity Analysis 90 Recoil Reduction 2 Force Boost 5 Offensive Hacking 42 Defensive Hacking 47 Item Schematics ----------------- Hacking Suite | -7/Factory | Hacked System Backup Module | -7/Factory | Hacked Imp. Melee Analysis Suite | -7/Factory | Scanalyzed Imp. System Shield | -7/Factory | Hacked Quantum Capacitor | -7/Factory | Downloaded Imp. Hacking Suite | -7/Factory | Hacked Spear | -7/Factory | Hacked Imp. Maneuvering Thrusters | -7/Factory | Hacked Imp. Target Analyzer | -7/Factory | Hacked Imp. Armor Integrity Analyzer | -7/Factory | Hacked Actuator Array | -7/Factory | Hacked Ripper | -7/Zion | Free Tactical Coordination Suite | -7/Zion | Free Adv. Melee Analysis Suite | -6/Factory | Hacked Imp. System Restoration Module | -6/Factory | Hacked Imp. Core Analyzer | -6/Factory | Hacked Imp. Phase Shifter | -6/Factory | Hacked Lance | -6/Factory | Hacked Imp. System Backup Module | -6/Factory | Scanalyzed Imp. Actuator Array | -6/Factory | Hacked Combat Drone Bay | -6/Data Miner | Free Lgt. Regenerative Plating | -6/Data Miner | Free Exp. Flexi-carbon Leg | -6/Data Miner | Free Triangulator | -6/Data Miner | Free Exp. Terrain Scan Processor | -6/Data Miner | Free Mni. Smartbomb Launcher | -6/Data Miner | Free Plasma Sword | -6/Data Miner | Free Exp. System Shield | -5/Factory | Hacked Reaction Control System | -5/Factory | Hacked Kinetic Spear | -5/Factory | Hacked Adv. Actuator Array | -5/Factory | Hacked Adv. Target Analyzer | -5/Factory | Hacked Hyp. Coil Gun | -5/Factory | Hacked Adv. Force Field | -5/Factory | Hacked Adv. Shield Generator | -5/Factory | Hacked Cmb. Gravmag System | -5/Factory | Hacked Adv. Hacking Suite | -5/Extension | Hacked Force Booster | -5/Extension | Hacked Adv. Armor Integrity Analyzer | -5/Extension | Hacked Nanoactuators | -5/Extension | Hacked Imp. Force Booster | -5/Extension | Hacked Force Lance | -5/Extension | Hacked Enh. Force Lance | -5/Extension | Hacked Cld. Deuterium Engine | -5/Extension | Hacked Q-thruster | -5/Hub_04(d) | Hacked HERF Cannon | -5/Hub_04(d) | Hacked Mic. Fission Core | -5/Hub_04(d) | Hacked Exp. Hacking Suite | -4/Factory | Hacked Cld. Nuclear Pulse Thruster | -4/Armory | Hacked System Purifier | -3/Research | Scanalyzed Exp. Core Analyzer | -3/Research | Hacked Exp. Target Analyzer | -3/Research | Hacked Exp. Melee Analysis Suite | -3/Research | Hacked Adv. Reaction Control System | -3/Research | Hacked Exp. Terrain Scanner | -3/Research | Hacked Adv. Force Booster | -3/Research | Hacked Hvy. Regenerative Plating | -3/Testing | Hacked Cld. Field Propulsion Drive | -3/Testing | Hacked Femtoactuators | -3/Testing | Hacked Exp. Phase Shifter | -3/Testing | Hacked Exp. Armor Integrity Analyzer | -3/Testing | Hacked Imp. Stasis Canceller | -3/Testing | Hacked Exp. Actuator Array | -2/Research | Hacked Cld. Fission Core | -2/Research | Hacked Mni. Fusion Reactor | -2/Research | Hacked Enh. Nova Cannon | -2/Quarantine | Hacked Cmb. Linear Gravjet | -2/Quarantine | Hacked Cld. Q-thruster | -2/Quarantine | Hacked Quantum Reactor | -2/Quarantine | Hacked Lgt. Quantum Reactor | -2/Quarantine | Hacked Adv. Heavy Siege Treads | -2/Quarantine | Hacked Biometal Heavy Treads | -2/Quarantine | Hacked Stasis Projector | -2/Section 7 | Hacked Enh. Quantum Rifle | -2/Section 7 | Hacked Graviton Cannon | -1/Command | Hacked Robot Schematics ------------------ L-41 Fighter | -7/Factory | Hacked S-27 Virus | -6/Data Miner | Free G-50 Soldier | -6/Data Miner | Free H-66 Slayer | -6/Data Miner | Free I-36 Angel | -6/Data Miner | Free Y-64 Sentinel | -5/Factory | Hacked X-72 Disruptor | -5/Factory | Hacked B-60 Warrior | -5/Factory | Hacked E-15 Imp | -5/Factory | Hacked B-48 Gladiator | -5/Extension | Hacked L-61 Swordsman | -4/Factory | Hacked G-67 Veteran | -4/Armory | Hacked I-47 Archangel | -4/Armory | Hacked O-32 Director | -4/Armory | Hacked P-70 Sage | -4/Armory | Hacked H-88 Terminator | -2/Research | Hacked P-80 Master | -2/Research | Hacked G-73 Enforcer | -2/Quarantine | Hacked C-65 Expert | -2/Quarantine | Hacked T-07 Excavator | -2/Quarantine | Hacked A-15 Conveyor | -2/Quarantine | Hacked B-74 Champion | -2/Section 7 | Hacked S-43 Plague | -2/Section 7 | Hacked K-01 Serf | -2/Section 7 | Hacked R-06 Scavenger | -1/Access | Hacked Fabricated ------------ Imp. Melee Analysis Suite | x1 | -7/Factory Imp. Melee Analysis Suite | x1 | -7/Factory Falx | x2 | -7/Factory | Preloaded Imp. System Shield | x1 | -7/Factory Imp. System Shield | x1 | -7/Factory Imp. Hacking Suite | x1 | -7/Factory Spear | x2 | -7/Factory Imp. Maneuvering Thrusters | x1 | -7/Factory Imp. Armor Integrity Analyzer | x1 | -7/Factory Imp. Target Analyzer | x1 | -7/Factory Imp. Core Analyzer | x1 | -6/Factory Lance | x2 | -6/Factory Imp. Phase Shifter | x1 | -6/Factory Lance | x2 | -6/Factory Actuator Array | x1 | -6/Factory Imp. Actuator Array | x1 | -6/Factory Reaction Control System | x1 | -5/Factory Adv. Actuator Array | x1 | -5/Factory S-27 Virus | x4 | -5/Factory Adv. Target Analyzer | x1 | -5/Factory I-36 Angel | x1 | -5/Factory Exp. System Shield | x1 | -5/Factory Exp. System Shield | x1 | -5/Factory Adv. Force Field | x2 | -5/Factory Adv. Target Analyzer | x1 | -5/Factory Kinetic Spear | x1 | -5/Factory Enh. Force Lance | x1 | -4/Factory Q-thruster | x2 | -4/Armory Exp. System Shield | x1 | -4/Armory Exp. Hacking Suite | x1 | -4/Armory Exp. Hacking Suite | x1 | -4/Armory Adv. Force Booster | x2 | -3/Research Exp. Core Analyzer | x1 | -3/Research Adv. Reaction Control System | x1 | -3/Research Exp. Target Analyzer | x1 | -3/Research Exp. Armor Integrity Analyzer | x1 | -3/Testing Femtoactuators | x1 | -3/Testing Exp. Phase Shifter | x1 | -3/Testing Exp. Terrain Scanner | x1 | -3/Testing Cld. Field Propulsion Drive | x1 | -3/Testing Exp. Actuator Array | x1 | -2/Research Exp. Melee Analysis Suite | x1 | -2/Research Cld. Fission Core | x1 | -2/Research Mni. Fusion Reactor | x1 | -2/Research Cld. Q-thruster | x1 | -1/Access Enh. Force Lance | x1 | -1/Access Enh. Force Lance | x1 | -1/Access Exp. Melee Analysis Suite | x1 | -1/Access Exp. Melee Analysis Suite | x1 | -1/Access Alien Tech Used ----------------- Core Expander Integrated Dissipator Transdimensional Reconstructor LRC Matter Compressor Subatomic Replicator LRC Insulator Integrity Redistributor Integrated Heat Negator Integrated Singularity Reactor Integrated Reactor Core Membrane Achievements -------------- Corridor Of Doom void main() Challenges ------------ None RPGLIKE | -11 -10 -10 -9 -9 -8 -7 -7 -7 -7 -7 -7 -6 -6 -6 -6 -6 -5 -5 -5 -5 -5 -5 -5 -5 -4 -4 -4 -4 -4 -3 -3 -2 -2 -2 -1 -1 --------- Run | Scr Mat Min Mat Sto Mat Fac Was Fac Low Low Zio Pro Fac Low Low Dat Pro Fac Was Fac Ext Cet Arc Hub Fac Was Fac Arm Lab Res Tes Res Qua Sec Acc Com Levels Raised 36 | . 1 1 5 2 3 3 . 1 1 . . 1 1 1 . . 1 2 . 1 . . 1 . 1 . 1 . . 2 . 3 . 1 1 2 XP Earned 57609 | 3000 1995 1991 6958 4036 3915 4423 67 2089 544 622 82 1174 2039 404 305 105 1275 3299 32 808 720 526 141 917 1136 32 1389 441 352 2348 832 3412 348 1148 1656 3048 XP Spent 47490 | . 2900 500 4370 3400 3700 9550 . 1400 . . . 4120 1500 300 . . . 3500 . 1900 . . . . . 4350 1900 . . . . 4100 . . . . Upgrades 50 | . 8 1 9 4 2 5 . 4 . . . 6 2 1 . . . 1 . 2 . . . . . 2 2 . . . . 1 . . . . Power Slot 1 | . . . 1 . . . . . . . . . . . . . . . . . . . . . . . . . . . . . . . . . Propulsion Slot 1 | . . 1 . . . . . . . . . . . . . . . . . . . . . . . . . . . . . . . . . . Utility Slot 13 | . . . 3 1 2 3 . . . . . 1 . . . . . 1 . . . . . . . 1 . . . . . 1 . . . . Weapon Slot 3 | . 1 . 1 1 . . . . . . . . . . . . . . . . . . . . . . . . . . . . . . . . Heat Dissipation 2 | . . . 2 . . . . . . . . . . . . . . . . . . . . . . . . . . . . . . . . . Energy Generation 3 | . . . . . . . . . . . . . . 1 . . . . . . . . . . . 1 1 . . . . . . . . . Mass Support 11 | . 2 . 1 1 . . . 1 . . . 1 2 . . . . . . 2 . . . . . . 1 . . . . . . . . . Inventory Capacity 4 | . . . 1 1 . 2 . . . . . . . . . . . . . . . . . . . . . . . . . . . . . . Terrain Scan Density 4 | . . . . . . . . . . . . 4 . . . . . . . . . . . . . . . . . . . . . . . . Melee Accuracy 3 | . . . . . . . . 3 . . . . . . . . . . . . . . . . . . . . . . . . . . . . Hack Attack % 2 | . 2 . . . . . . . . . . . . . . . . . . . . . . . . . . . . . . . . . . . Hack Defense % 3 | . 3 . . . . . . . . . . . . . . . . . . . . . . . . . . . . . . . . . . . Protomatter Created 18180 | . 127 100 591 854 735 1131 . 693 354 294 . 149 722 359 328 . 400 1663 . 1078 592 68 . 320 353 290 683 570 . 1488 475 1516 . 604 767 876 Integrity Restored 18570 | . 255 317 1079 788 846 1951 . 1041 488 676 . 297 286 388 268 . 237 1721 . 419 272 234 119 422 261 53 987 201 . 1600 324 1182 . 931 167 760 Core 14732 | . 249 317 971 623 665 1561 . 820 392 568 . 191 233 316 219 . 199 1374 . 344 170 162 92 302 203 8 774 155 . 1258 227 893 . 729 127 590 Parts 3838 | . 6 . 108 165 181 390 . 221 96 108 . 106 53 72 49 . 38 347 . 75 102 72 27 120 58 45 213 46 . 342 97 289 . 202 40 170 Protomatter Decayed 23575 | . 26 5 144 686 443 221 . 455 243 158 . 142 906 224 166 . 335 1358 . 1180 609 212 42 506 262 261 1069 495 . 1075 446 882 168 272 706 9878 Game ------ Seed SurveybotHeatMachine Manual? 0 Play Time 08:36:25 Cumulative 153.6 hours Start 2020.01.17 @ 14:12:27 End 2020.01.31 @ 17:09:46 Sessions 14 Manual Loads 0 Difficulty Rogue Special Mode Winter2019/RPGLIKE Game No. 141 Rogue 141 Adventurer 0 Explorer 0 Win Type - Total 12 Types 11/0/0/1/0/0/0 Lore% 74 Gallery% 73 Achievement% 66 Wizard Run 0 Options --------- ASCII 0 Keyboard 0 Movement Numpad Keybinds 0 Fullscreen 2 Font 18/SmallcapsGlow Map View 76x50 Tactical HUD 1 Map Filters NONE Filters NONE Steam 1 RUN: 3ba36e45-54d6-4824-9325-b12d73bbe099